Workbook

Sheet Cover
B7: GRANT THORNTON KPI ANALYSIS
C9: Welcome to the Grant Thornton KPI Analysis Tool.
C10: By entering summarised information for each department you
C11: will be able to:
C13: 1. | D13: Compare each department's performance to Grant Thornton's
D14: Industry Benchmarks
C16: 2. | D16: Compare the performance of one period or year to another period
D17: or year
C19: 3. | D19: Reconcile the movement in net profit from one period or year to
D20: another period or year by department
C22: 4. | D22: Compare your balance sheet across two periods
C24: 5. | D24: Compute your balance sheet ratios
C26: The KPI Analysis Tool is designed to be flexible. It can be
C27: completed to analyse an individual month or a full year, a complete
C28: dealership or just a single location, utilising your management
C29: accounts with no mapping required.
C31: If you have any questions on how you can utilise this tool for your
C32: dealership or tips on how to maximise your service department
C33: profitability please contact a Grant Thornton Automotive Retail partner.

Sheet Dealership Details
B7: PLEASE ENTER YOUR DEALERSHIP DETAILS | J7: PLEASE ENTER SALES AND EXPENSE DATA FOR EACH DEPARTMENT
B9: Dealership: | D9: Sample Motors
B11: Franchise(s): | D11: Ford, Kia
B12: Location: | D12: Metro
B13: Type: | D13: Non-Luxury
B14: Period: | D14: 2014-06-30
B15: No. of months: | D15: 12
J19: PLEASE ENTER KEY BALANCE SHEET DATA

Sheet Comparative Details
B7: PLEASE ENTER YOUR COMPARATIVE DETAILS | K7: PLEASE ENTER COMPARATIVE SALES AND EXPENSE DATA FOR EACH DEPARTMENT
B9: Period: | D9: 2013-06-30
B10: No. of months: | D10: 12
K18: PLEASE ENTER COMPARATIVE KEY BALANCE SHEET DATA

Sheet New Vehicles
B7: PLEASE ENTER NEW VEHICLE RESULTS FOR THE PERIOD
B9: Total Dealership
B10: Total units sold | D10: 1690
B11: Retail units | D11: 1690
B12: Total $ Sales for the period | D12: 54500000
B13: Total $ COS for the period | D13: 50676000
B14: Aftermarket gross (if not inc. above) | D14: 0
B15: Total holdback and factory bonuses for the period | D15: 2615000
B16: Advertising | D16: 366000
B17: Floorplan Interest | D17: 383000
B18: Units on hand | D18: 250
B19: Number of sales staff | D19: 9
B20: Salaries & Commission | D20: 960000
B21: - sales staff & managers only
B23: Additional Franchises Information
B24: Franchise 1 | D24: Ford
B25: Units sold | D25: 1180
B26: Total $ Sales for the period | D26: 38080000
B27: Total $ COS for the period | D27: 35361000
B28: Holdback and factory bonuses | D28: 1868000
B30: Franchise 2 | D30: Kia
B31: Total $ Sales for the period | D31: 510
B32: Total $ Sales for the period | D32: 16420000
B33: Total $ COS for the period | D33: 15315000
B34: Holdback and factory bonuses | D34: 747000
B36: Franchise 3
B37: Units sold
B38: Total $ Sales for the period
B39: Total $ COS for the period
B40: Holdback and factory bonuses

Sheet New Vehicles PY
B7: PLEASE ENTER NEW VEHICLE RESULTS FOR THE COMPARATIVE PERIOD
B9: Total Dealership
B10: Total units sold | D10: 1535
B11: Retail units | D11: 1535
B12: Total $ Sales for the period | D12: 47368000
B13: Total $ COS for the period | D13: 44144000
B14: Aftermarket gross (if not inc. above) | D14: 0
B15: Total holdback and factory bonuses for the period | D15: 2327000
B16: Advertising | D16: 366000
B17: Floorplan Interest | D17: 362000
B18: Units on hand | D18: 197
B19: Number of sales staff | D19: 10
B20: Salaries & Commission | D20: 821000
B21: - sales staff & managers only
B23: Additional Franchises Information
B24: Franchise 1 | D24: Ford
B25: Units sold | D25: 1073
B26: Total $ Sales for the period | D26: 31295000
B27: Total $ COS for the period | D27: 29220000
B28: Holdback and factory bonuses | D28: 1586000
B30: Franchise 2 | D30: Kia
B31: Total $ Sales for the period | D31: 462
B32: Total $ Sales for the period | D32: 16073000
B33: Total $ COS for the period | D33: 14924000
B34: Holdback and factory bonuses | D34: 741000
B36: Franchise 3
B37: Units sold
B38: Total $ Sales for the period
B39: Total $ COS for the period
B40: Holdback and factory bonuses

Sheet Used Vehicles
B7: PLEASE ENTER USED VEHICLE RESULTS FOR THE PERIOD
B9: Retail
B10: Units Sold | D10: 482
B11: Total $ Sales for the period | D11: 9818000
B12: Total $ COS for the period | D12: 8626000
B13: Aftermarket gross (if not inc. above) | D13: 0
B14: Advertising | D14: 158000
B15: Floorplan Interest | D15: 0
B16: Units on hand | D16: 125
B17: Number of sales staff | D17: 3
B18: Salaries & Commission | D18: 386000
B19: - sales staff & managers, excluding wholesale manager
B21: Wholesale
B22: Units Sold | D22: 717
B23: Total $ Sales for the period | D23: 5024000
B24: Total $ COS for the period | D24: 5079000

Sheet Used Vehicles PY
B7: PLEASE ENTER USED VEHICLE RESULTS FOR THE COMPARATIVE PERIOD
B9: Retail
B10: Units Sold | D10: 495
B11: Total $ Sales for the period | D11: 9602000
B12: Total $ COS for the period | D12: 8561000
B13: Aftermarket gross (if not inc. above) | D13: 0
B14: Advertising | D14: 173000
B15: Floorplan Interest | D15: 0
B16: Units on hand | D16: 52
B17: Number of sales staff | D17: 2.5
B18: Salaries & Commission | D18: 438532
B19: - sales staff & managers, excluding wholesale manager
B21: Wholesale
B22: Units Sold | D22: 737
B23: Total $ Sales for the period | D23: 4657000
B24: Total $ COS for the period | D24: 4508000

Sheet Parts
B7: PLEASE ENTER PARTS RESULTS FOR THE PERIOD
B9: Total $ Sales for the period | D9: 4909000
B10: Total $ COS for the period | D10: 3773000
B11: Sales to workshop | D11: 1755000
B12: Parts Inventory on hand | D12: 418000
B13: Number of staff | D13: 8
B14: Salaries & Comm. | D14: 336000

Sheet Parts PY
B7: PLEASE ENTER PARTS RESULTS FOR THE COMPARATIVE PERIOD
B9: Total $ Sales for the period | D9: 4811000
B10: Total $ COS for the period | D10: 3734000
B11: Sales to workshop | D11: 1840000
B12: Parts Inventory on hand | D12: 335000
B13: Number of staff | D13: 8
B14: Salaries & Comm. | D14: 338000

Sheet Service
B7: PLEASE ENTER SERVICE RESULTS FOR THE PERIOD
B9: Total $ Sales for the period | D9: 5092000
B10: Total $ COS for the period | D10: 1795000
B11: Total $ Labour Sales for the period | D11: 4012000
B12: Total $ Labour COS for the period | D12: 1065000
B13: Unapplied time | D13: 0
B14: Total $ Retail Labour Sales | D14: 2110000
B16: Number of chargeable staff | E16: Productive
B17: Qualified Technicians | D17: 22 | E17: 1
B18: 4th Year Apprentice | D18: 4 | E18: 1
B19: 3rd Year Apprentice | D19: 3 | E19: 0.9
B20: 2nd Year Apprentice | D20: 3 | E20: 0.8
B21: 1st Year Apprentice | D21: 6 | E21: 0.5
B22: Foreman (add % productivity)
D23: =(D17*E17)+(D18*E18)+(D19*E19)+(D20*E20)+(D21*E21)+(D22*E22) -> 34.1 | E23: Adjusted
B24: Number of non-chargeable staff
B25: Service Advisor | D25: 6
B26: Other Staff | D26: 11
D27: =SUM(D25:D26) -> 17
B29: Salaries & Comm. | D29: 659000

Sheet Service PY
B7: PLEASE ENTER SERVICE RESULTS FOR THE COMPARATIVE PERIOD
B9: Total $ Sales for the period | D9: 4653000
B10: Total $ COS for the period | D10: 1652000
B11: Total $ Labour Sales for the period | D11: 3705000
B12: Total $ Labour COS for the period | D12: 1023000
B13: Unapplied time | D13: 0
B14: Total $ Retail Labour Sales | D14: 1885000
B16: Number of chargeable staff | E16: Productive
B17: Qualified Technicians | D17: 21 | E17: 1
B18: 4th Year Apprentice
B19: 3rd Year Apprentice | D19: 4 | E19: 1
B20: 2nd Year Apprentice | D20: 3 | E20: 0.9
B21: 1st Year Apprentice | D21: 3 | E21: 0.5
B22: Foreman (add % productivity)
D23: =(D17*E17)+(D18*E18)+(D19*E19)+(D20*E20)+(D21*E21)+(D22*E22) -> 29.2 | E23: Adjusted
B24: Number of non-chargeable staff
B25: Service Advisor | D25: 5
B26: Other Staff | D26: 15
D27: =SUM(D25:D26) -> 20
B29: Salaries & Comm. | D29: 575000

Sheet F&I
B7: PLEASE ENTER F&I RESULTS FOR THE PERIOD
B9: New
B10: Finance Income | D10: 1485000
B11: No. of contracts | D11: 551
B12: Insurance Income | D12: 121000
B14: Used
B15: Finance Income | D15: 0
B16: No. of contracts | D16: 0
B17: Insurance Income | D17: 0
B19: No. of staff | D19: 2
B20: Salaries & Commission | D20: 350000

Sheet F&I PY
B7: PLEASE ENTER F&I RESULTS FOR THE COMPARATIVE PERIOD
B9: New
B10: Finance Income | D10: 1332000
B11: No. of contracts | D11: 497
B12: Insurance Income | D12: 115000
B14: Used
B15: Finance Income | D15: 0
B16: No. of contracts | D16: 0
B17: Insurance Income | D17: 0
B19: No. of staff | D19: 2
B20: Salaries & Commission | D20: 268000

Sheet Admin
B7: PLEASE ENTER KEY EXPENSES FOR THE PERIOD
B9: Net profit | D9: 2215000
B10: Rent expense | D10: 800000
B11: Admin & DP salary & commission | D11: 480000
B12: Interest (Overdraft, working cap.) | D12: 159000
B13: Other Income (If applicable)

Sheet Admin PY
B7: PLEASE ENTER KEY EXPENSES FOR THE COMPARATIVE PERIOD
B9: Net profit | D9: 1575000
B10: Rent expense | D10: 788000
B11: Admin & DP salary & commission | D11: 530000
B12: Interest (Overdraft, working cap.) | D12: 155000
B13: Other Income (If applicable) | D13: 0

Sheet Assets
B7: PLEASE ENTER DEALERSHIP ASSETS FOR THE PERIOD
B9: Current Assets
B10: Cash | D10: 100000
B11: Trade debtors
B12: Vehicle | D12: 225000
B13: Parts & Service | D13: 815000
B14: Factory | D14: 80000
B15: Finance & Insurance | D15: 125000
D16: =SUM(D12:D15) -> 1245000
B17: Inventories
B18: New | D18: 6860000
B19: Used | D19: 1625000
B20: Parts & Accessories | D20: 1626000
B21: Other | D21: 11000
D22: =SUM(D18:D21) -> 10122000
B24: Other current assets | D24: 0
D26: =D10+D16+D22+D24 -> 11467000
B29: Non-current Assets
B30: Property, plant & equipment | D30: 2500000
B31: Goodwill & Intangibles | D31: 0
B32: Other non-current assets | D32: 0
D34: =SUM(D30:D32) -> 2500000
B36: Total Assets | D36: =D26+D34 -> 13967000

Sheet Assets PY
B7: PLEASE ENTER DEALERSHIP ASSETS FOR THE COMPARATIVE PERIOD
B9: Current Assets
B10: Cash | D10: -235332
B11: Trade debtors
B12: Vehicle | D12: 301000
B13: Parts & Service | D13: 318000
B14: Factory | D14: 150000
B15: Finance & Insurance | D15: 75000
D16: =SUM(D12:D15) -> 844000
B17: Inventories
B18: New | D18: 5550000
B19: Used | D19: 1282000
B20: Parts & Accessories | D20: 335000
B21: Other | D21: 0
D22: =SUM(D18:D21) -> 7167000
B24: Other current assets | D24: 0
D26: 8498124
B29: Non-current Assets
B30: Property, plant & equipment | D30: 2391000
B31: Goodwill & Intangibles | D31: 0
B32: Other non-current assets
D34: =SUM(D30:D32) -> 2391000
B36: Total Assets | D36: =D26+D34 -> 10889124

Sheet Liabilities
B7: PLEASE ENTER DEALERSHIP LIABILITIES AND EQUITY FOR THE PERIOD
B9: LIABILITIES
B10: Current Liabilities
B11: Trade creditors | D11: 150000
B12: Floorplan | D12: 8160000
B13: Short-term debt | D13: 20000
B14: Other payables & accruals | D14: 120000
D16: =SUM(D11:D14) -> 8450000
B18: Non-current Liabilities
B19: Long-term debt | D19: 2000000
B20: Other payables & accruals | D20: 0
B21: Inter-group / Inter-company bal. | D21: 987590
D23: =SUM(D19:D21) -> 2987590
B25: TOTAL LIABILITIES | D25: =D16+D23 -> 11437590
B27: NET ASSETS | D27: =Assets!D36-Liabilities!D25 -> 2529410
B29: EQUITY
B31: Contributed equity | D31: 100
B32: Reserves | D32: 0
B33: Retained (earnings)/losses | D33: 2529310
B35: Total Equity | D35: =SUM(D31:D33) -> 2529410
B37: Check (should be zero) | D37: =D27-D35 -> 0

Sheet Liabilities PY
B7: PLEASE ENTER DEALERSHIP LIABILITIES AND EQUITY FOR THE COMPARATIVE PERIOD
B9: LIABILITIES
B10: Current Liabilities
B11: Trade creditors | D11: 200000
B12: Floorplan | D12: 6500000
B13: Short-term debt | D13: 100000
B14: Other payables & accruals | D14: 250000
D16: =SUM(D11:D14) -> 7050000
B18: Non-current Liabilities
B19: Long-term debt | D19: 2000000
B20: Other payables & accruals | D20: 0
B21: Inter-group / Inter-company bal. | D21: 0
D23: =SUM(D19:D21) -> 2000000
B25: TOTAL LIABILITIES | D25: =D16+D23 -> 9050000
B27: NET ASSETS | D27: ='Assets PY'!D36-'Liabilities PY'!D25 -> 1839124
B29: EQUITY
B31: Contributed equity | D31: 100
B32: Reserves | D32: 0
B33: Retained (earnings)/losses | D33: 1839024
B35: Total Equity | D35: =SUM(D31:D33) -> 1839124
B37: Check (should be zero) | D37: =D27-D35 -> 0

Sheet InputCurrent (hidden)
A1: Dealership Key Benchmark Analysis | L1: Dealership Key Benchmark Analysis
A2: Input Sheet - Current Period | L2: Input Sheet - Current Period
A5: Dealership: | C5: ='Dealership Details'!D9 -> Sample Motors | L5: ASSETS | Q5: LIABILITIES
A7: Franchise(s): | C7: ='Dealership Details'!D11 -> Ford, Kia | L7: Current Assets | Q7: Current Liabilities
A8: Location: | C8: ='Dealership Details'!D12 -> Metro | L8: Cash | N8: =Assets!D10 -> 100000 | Q8: Trade creditors | S8: =Liabilities!D11 -> 150000
A9: Type: | C9: ='Dealership Details'!D13 -> Non-Luxury | Q9: Floorplan | S9: =Liabilities!D12 -> 8160000
A10: Period: | C10: ='Dealership Details'!D14 -> 2014-06-30 | L10: Trade debtor | Q10: Short-term debt | S10: =Liabilities!D13 -> 20000
A11: No. of months: | C11: ='Dealership Details'!D15 -> 12 | L11: Vehicle | N11: =Assets!D12 -> 225000 | Q11: Other payables & accruals | S11: =Liabilities!D14 -> 120000
L12: Parts & Service | N12: =Assets!D13 -> 815000
L13: Factory | N13: =Assets!D14 -> 80000 | S13: =SUM(S8:S11) -> 8450000
A14: New Vehicles | F14: Parts | L14: Finance & Insurance | N14: =Assets!D15 -> 125000
N15: =SUM(N11:N14) -> 1245000 | Q15: Non-current Liabilities
A16: Total Dealership | F16: Sales | H16: =Parts!D9 -> 4909000 | L16: Inventories | Q16: Long-term debt | S16: =Liabilities!D19 -> 2000000
A17: Total units sold | C17: ='New Vehicles'!D10 -> 1690 | F17: COS | H17: =Parts!D10 -> 3773000 | L17: New | N17: =Assets!D18 -> 6860000 | Q17: Other payables & accruals | S17: =Liabilities!D20 -> 0
A18: Retail units | C18: ='New Vehicles'!D11 -> 1690 | F18: Sales to workshop | H18: =Parts!D11 -> 1755000 | L18: Used | N18: =Assets!D19 -> 1625000 | Q18: Inter-group / Inter-company bal. | S18: =Liabilities!D21 -> 987590
A19: Sales | C19: ='New Vehicles'!D12 -> 54500000 | F19: Parts Inventory on hand | H19: =Parts!D12 -> 418000 | L19: Parts & Accessories | N19: =Assets!D20 -> 1626000
A20: COS | C20: ='New Vehicles'!D13 -> 50676000 | F20: Number of staff | H20: =Parts!D13 -> 8 | L20: Other | N20: =Assets!D21 -> 11000 | S20: =SUM(S16:S18) -> 2987590
A21: Aftermarket gross (if not inc. above) | C21: ='New Vehicles'!D14 -> 0 | F21: Salaries & Comm. | H21: =Parts!D14 -> 336000 | N21: =SUM(N17:N20) -> 10122000
A22: Holdback and factory bonuses | C22: ='New Vehicles'!D15 -> 2615000 | S22: =S13+S20 -> 11437590
A23: Advertising | C23: ='New Vehicles'!D16 -> 366000 | F23: Service | L23: Other current assets | N23: =Assets!D24 -> 0
A24: Floorplan Interest | C24: ='New Vehicles'!D17 -> 383000 | Q24: NET ASSETS | S24: =N34-S22 -> 2529410
A25: Units on hand | C25: ='New Vehicles'!D18 -> 250 | F25: Total Sales | H25: =Service!D9 -> 5092000 | N25: =N8+N15+N21+N23 -> 11467000
A26: Number of sales staff | C26: ='New Vehicles'!D19 -> 9 | F26: Total COS | H26: =Service!D10 -> 1795000 | Q26: EQUITY
A27: Salaries & Commission | C27: ='New Vehicles'!D20 -> 960000 | F27: Labour Sales | H27: =Service!D11 -> 4012000 | L27: Non-current Assets
A28: - sales staff & managers only | F28: Labour COS | H28: =Service!D12 -> 1065000 | L28: Property, plant & equipment | N28: =Assets!D30 -> 2500000 | Q28: Contributed equity | S28: =Liabilities!D31 -> 100
F29: Unapplied time | H29: =Service!D13 -> 0 | L29: Goodwill & Intangibles | N29: =Assets!D31 -> 0 | Q29: Reserves | S29: =Liabilities!D32 -> 0
A30: Additional Franchises Information | F30: Labour Sales - Retail | H30: =Service!D14 -> 2110000 | L30: Other non-current assets | N30: =Assets!D32 -> 0 | Q30: Retained (earnings)/losses | S30: =Liabilities!D33 -> 2529310
A31: Franchise 1 | C31: ='New Vehicles'!D24 -> Ford
A32: Units sold | C32: ='New Vehicles'!D25 -> 1180 | F32: Number of chargeable staff | I32: Productive | N32: =SUM(N28:N30) -> 2500000 | S32: =SUM(S28:S30) -> 2529410
A33: Sales | C33: ='New Vehicles'!D26 -> 38080000 | F33: Qualified Technicians | H33: =Service!D17 -> 22 | I33: =Service!E17 -> 1
A34: COS | C34: ='New Vehicles'!D27 -> 35361000 | F34: 4th Year Apprentice | H34: =Service!D18 -> 4 | I34: =Service!E18 -> 1 | N34: =N25+N32 -> 13967000 | Q34: Check (should be zero) | S34: =S24-S32 -> 0
A35: Holdback and factory bonuses | C35: ='New Vehicles'!D28 -> 1868000 | F35: 3rd Year Apprentice | H35: =Service!D19 -> 3 | I35: =Service!E19 -> 0.9
F36: 2nd Year Apprentice | H36: =Service!D20 -> 3 | I36: =Service!E20 -> 0.8
A37: Franchise 2 | C37: ='New Vehicles'!D30 -> Kia | F37: 1st Year Apprentice | H37: =Service!D21 -> 6 | I37: =Service!E21 -> 0.5
A38: Units sold | C38: ='New Vehicles'!D31 -> 510 | F38: Foreman (add % productivity) | H38: =Service!D22 -> 0 | I38: =Service!E22 -> 0
A39: Sales | C39: ='New Vehicles'!D32 -> 16420000 | H39: =(H33*I33)+(H34*I34)+(H35*I35)+(H36*I36)+(H37*I37)+(H38*I38) -> 34.1 | I39: Adjusted
A40: COS | C40: ='New Vehicles'!D33 -> 15315000 | F40: Number of non-chargeable staff
A41: Holdback and factory bonuses | C41: ='New Vehicles'!D34 -> 747000 | F41: Service Advisor | H41: =Service!D25 -> 6
F42: Other Staff | H42: =Service!D26 -> 11
A43: Franchise 3 | C43: ='New Vehicles'!D36 -> 0 | H43: =SUM(H41:H42) -> 17
A44: Units sold | C44: ='New Vehicles'!D37 -> 0
A45: Sales | C45: ='New Vehicles'!D38 -> 0 | F45: Salaries & Comm. | H45: =Service!D29 -> 659000
A46: COS | C46: ='New Vehicles'!D39 -> 0
A47: Holdback and factory bonuses | C47: ='New Vehicles'!D40 -> 0 | F47: F&I
A49: Used Vehicles | F49: New
F50: Finance Income | H50: ='F&I'!D10 -> 1485000
A51: Retail | F51: No. of contracts | H51: ='F&I'!D11 -> 551
A52: Units Sold | C52: ='Used Vehicles'!D10 -> 482 | F52: Insurance Income | H52: ='F&I'!D12 -> 121000
A53: Sales | C53: ='Used Vehicles'!D11 -> 9818000
A54: COS | C54: ='Used Vehicles'!D12 -> 8626000 | F54: Used
A55: Aftermarket Gross | C55: ='Used Vehicles'!D13 -> 0 | F55: Finance Income | H55: ='F&I'!D15 -> 0
A56: Advertising | C56: ='Used Vehicles'!D14 -> 158000 | F56: No. of contracts | H56: ='F&I'!D16 -> 0
A57: Floorplan Interest | C57: ='Used Vehicles'!D15 -> 0 | F57: Insurance Income | H57: ='F&I'!D17 -> 0
A58: Units on hand | C58: ='Used Vehicles'!D16 -> 125
A59: Number of sales staff | C59: ='Used Vehicles'!D17 -> 3 | F59: No. of staff | H59: ='F&I'!D19 -> 2
A60: Salaries & Commission | C60: ='Used Vehicles'!D18 -> 386000 | F60: Salaries & Commission | H60: ='F&I'!D20 -> 350000
A61: - sales staff & managers, excluding wholesale manager
F62: Admin
A63: Wholesale
A64: Units Sold | C64: ='Used Vehicles'!D22 -> 717 | F64: Net profit | H64: =Admin!D9 -> 2215000
A65: Sales | C65: ='Used Vehicles'!D23 -> 5024000 | F65: Rent expense | H65: =Admin!D10 -> 800000
A66: COS | C66: ='Used Vehicles'!D24 -> 5079000 | F66: Admin & DP salary & commission | H66: =Admin!D11 -> 480000
F67: Interest (Overdraft, working cap.) | H67: =Admin!D12 -> 159000
F68: Other Income (If applicable) | H68: =Admin!D13 -> 0
A72: Dealership Key Benchmark Analysis | L72: Dealership Key Benchmark Analysis
A73: Calculated Sheet - Current Period | L73: Calculated Sheet - Current Period
A75: New | F75: Parts | L75: Profit Reconciliation
A77: Units per month | C77: =C17/$C$11 -> 140.8333333 | F77: Monthly Sales | H77: =H16/$C$11 -> 409083.3333 | L77: NEW
A78: Retailed Units per month | C78: =C18/$C$11 -> 140.8333333 | F78: Gross Profit | H78: =H16-H17 -> 1136000 | L78: GP | N78: =H131 -> 6439000
A79: Gross Profit (inc. holdback & A/market) | C79: =C19-C20+C22+C21 -> 6439000 | F79: Gross Profit % | H79: =H78/H16 -> 0.2314116928 | L79: Advertising | N79: =-C23 -> -366000
A80: Gross Profit Margin | C80: =C79/C19 -> 0.118146789 | F80: Days supply | H80: =H19/((H77*(1-H79))/30.4167) -> 40.4373621 | L80: Floorplan Interest | N80: =-C24 -> -383000
A81: Gross per unit | C81: =C79/C17 -> 3810.059172 | F81: Mthly sales per staff | H81: =H77/H20 -> 51135.41667 | L81: Salaries & Commission | N81: =-C27 -> -960000
A82: Aftermarket per retail unit | C82: =C21/C18 -> 0 | F82: Mthly gross per staff | H82: =H78/H20/$C$11 -> 11833.33333 | L82: Adjusted Contribution | N82: =SUM(N78:N81) -> 4730000
A83: Days supply | C83: =C25/(C77/30.4167) -> 53.99414201 | F83: $ sales per $ salary | H83: =H16/H21 -> 14.61011905
A84: Units per sales staff per mth | C84: =C77/C26 -> 15.64814815 | F84: Gross ROI | H84: =(H78/H17)*(365/H80) -> 2.717700371 | L84: USED
A85: Gross per sales person per mth | C85: =(C79-C21)/C26/$C$11 -> 59620.37037 | L85: Retail
A86: Advertising per unit | C86: =C23/C17 -> 216.5680473 | F86: Service | L86: GP | N86: =C118 -> 1192000
A87: Floorplan per unit | C87: =C24/C17 -> 226.6272189 | L87: Advertising | N87: =-C56 -> -158000
A88: Salaries & Comm. per unit | C88: =C27/C17 -> 568.0473373 | F88: Monthly Sales | H88: =H25/$C$11 -> 424333.3333 | L88: Floorplan Interest | N88: =-C57 -> 0
A89: Gross ROI | C89: =(C79/C20)*(365/C83) -> 0.8589389908 | F89: Gross Profit | H89: =H25-H26 -> 3297000 | L89: Salaries & Commission | N89: =-C60 -> -386000
F90: Gross Profit % | H90: =H89/H25 -> 0.6474862529 | N90: =SUM(N86:N89) -> 648000
A91: Additional Franchises Information | F91: Monthly Labour Sales | H91: =H27/$C$11 -> 334333.3333 | L91: Wholesale
A92: Units per month | C92: =C32/$C$11 -> 98.33333333 | F92: Gross Profit | H92: =H27-H28-H29 -> 2947000 | L92: GP | N92: =C131 -> -55000
A93: Gross Profit (inc. holdback) | C93: =C33-C34+C35 -> 4587000 | F93: Gross Profit % | H93: =H92/H27 -> 0.7345463609 | L93: Adjusted Contribution | N93: =N90+N92 -> 593000
A94: Gross Profit Margin | C94: =C93/C33 -> 0.1204569328 | F94: Mthly sales per technician | H94: =H91/H39 -> 9804.496579
A95: Gross per unit | C95: =C93/C32 -> 3887.288136 | F95: Mthly labour gross per technician | H95: =H92/H39/$C$11 -> 7201.857283 | L95: PARTS
F96: Unapplied time% labour COS | H96: =H29/(H28+H29) -> 0 | L96: GP | N96: =H78 -> 1136000
F97: Non-chargeable salaries % gross | H97: =H45/H89 -> 0.1998786776 | L97: Salaries & Commission | N97: =-H21 -> -336000
A98: Units per month | C98: =C38/$C$11 -> 42.5 | F98: Chargeable/ non-chargeable | H98: =H39/H43 -> 2.005882353 | L98: Adjusted Contribution | N98: =SUM(N96:N97) -> 800000
A99: Gross Profit (inc. holdback) | C99: =C39-C40+C41 -> 1852000 | F99: Technician to service advisor | H99: =H39/H41 -> 5.683333333
A100: Gross Profit Margin | C100: =C99/C39 -> 0.1127892814 | F100: Parts (workshop) /labour (retail) | H100: =H18/H30 -> 0.8317535545 | L100: SERVICE
A101: Gross per unit | C101: =C99/C38 -> 3631.372549 | L101: Labour GP | N101: =H92 -> 2947000
F102: F&I | L102: Other GP | N102: =H89-H92 -> 350000
L103: Unapplied time | N103: =-H29 -> 0
A104: Units per month | C104: =C44/$C$11 -> 0 | F104: New Vehicles | L104: Salaries & Commission | N104: =-H45 -> -659000
A105: Gross Profit (inc. holdback) | C105: =C45-C46+C47 -> 0 | F105: Finance penetration | H105: =H51/(C18+C52) -> 0.2536832413 | L105: Adjusted Contribution | N105: =SUM(N101:N104) -> 2638000
A106: Gross Profit Margin | C106: =C105/C45 ->  | F106: Income per contract | H106: =H50/H51 -> 2695.099819
A107: Gross per unit | C107: =C105/C44 ->  | F107: Finance per retail unit | H107: =H50/(C18+C52) -> 683.7016575 | L107: F&I
F108: Insurance per retail unit | H108: =H52/(C18+C52) -> 55.70902394 | L108: Finance - New | N108: =H50 -> 1485000
A109: Used | L109: Finance - Used | N109: =H55 -> 0
F110: Used Vehicles | L110: Insurance - New | N110: =H52 -> 121000
A111: Total Units sold | C111: =(C52+C64) -> 1199 | F111: Finance penetration | H111: =H56/C52 -> 0 | L111: Insurance - Used | N111: =H57 -> 0
A112: Total Units per month | C112: =C111/$C$11 -> 99.91666667 | F112: Income per contract | H112: =H55/H56 ->  | L112: Salaries & Commission | N112: =-H60 -> -350000
A113: Gross Profit (inc. w/s gross) | C113: =(C53-C54+C55)+(C65-C66) -> 1137000 | F113: Finance per retail unit | H113: =H55/C52 -> 0 | L113: Adjusted Contribution | N113: =SUM(N108:N112) -> 1256000
A114: Gross Profit % | C114: =C113/C53 -> 0.1158077001 | F114: Insurance per retail unit | H114: =H57/C52 -> 0
L115: Total Departmental Contribution | N115: =N82++N93+N98+N105+N113 -> 10017000
A116: Retail | F116: Total F&I Income | H116: =H50+H52+H55+H57 -> 1606000
A117: Retail Units per month | C117: =C52/$C$11 -> 40.16666667 | F117: F&I Income per mth | H117: =H116/C11 -> 133833.3333 | L117: ADMIN
A118: Retail Gross Profit (inc. a/market) | C118: =C53-C54+C55 -> 1192000 | F118: F&I Income per staff per mth | H118: =H117/H59 -> 66916.66667 | L118: Rent expense | N118: =-H65 -> -800000
A119: Gross per unit (retail) | C119: =C118/C52 -> 2473.029046 | F119: Units retailed per F&I staff per mth | H119: =(C18+C52)/H59/12 -> 90.5 | L119: Admin & DP salary & commission | N119: =-H66 -> -480000
A120: Aftermarket per unit | C120: =C55/C52 -> 0 | L120: Interest (Overdraft, working cap.) | N120: =-H67 -> -159000
A121: Days supply | C121: =C58/(C117/30.4167) -> 94.65778008 | F121: Big Picture | L121: Other income | N121: =H68 -> 0
A122: Units per sales staff per mth | C122: =C117/C59 -> 13.38888889 | L122: Other expenses | N122: =-(-H64+N118+N119+N120+N121+N115) -> -6363000
A123: Gross per sales person per mth | C123: =(C118-C55)/C59/C11 -> 33111.11111 | F123: Total Sales (inc used w/s) | H123: =C19+C53+C65+H16+H25 -> 79343000 | L123: Adjusted Contribution | N123: =SUM(N118:N122) -> -7802000
A124: Advertising per retail unit | C124: =C56/C52 -> 327.8008299 | F124: Total Gross (inc used w/s) | H124: =C79+C113+H78+H89 -> 12009000
A125: Floorplan per retail unit | C125: =C57/C52 -> 0 | F125: Net Profit % sales | H125: =H64/H123 -> 0.02791676644 | L125: Net Profit | N125: =N115+N123 -> 2215000
A126: Salaries & Comm. retail per retail unit | C126: =C60/C52 -> 800.8298755 | F126: Rent % Gross | H126: =H65/H124 -> 0.06661670414
A127: Used/new ratio | C127: =C117/C78 -> 0.2852071006 | F127: Admin & DP salary % Gross | H127: =H66/H124 -> 0.03997002248
F128: Interest % Gross | H128: =H67/H124 -> 0.01324006995
A129: Wholesale
A130: Wholesale Units per month | C130: =C64/$C$11 -> 59.75 | F130: Gross contribution
A131: Wholesale Gross Profit | C131: =C65-C66 -> -55000 | F131: New | G131: =H131/$H$124 -> 0.5361811974 | H131: =C79 -> 6439000
A132: Gross per unit (wholesale) | C132: =C131/C64 -> -76.70850767 | F132: Used | G132: =H132/$H$124 -> 0.09467899076 | H132: =C113 -> 1137000
F133: Parts | G133: =H133/$H$124 -> 0.09459571988 | H133: =H78 -> 1136000
A134: Gross ROI | C134: =(C113/C54)*(365/C121) -> 0.5082619053 | F134: Service | G134: =H134/$H$124 -> 0.2745440919 | H134: =H89 -> 3297000
A200: Drop down List Box
A202: Location | C202: Type
A203: Metro | C203: Non-Luxury
A204: Regional | C204: Luxury
A205: Rural

Sheet Benchmark
A5: Key Benchmark Analysis
A7: Dealership: | C7: =InputCurrent!C5 -> Sample Motors
A9: Franchise(s): | C9: =InputCurrent!C7 -> Ford, Kia
A10: Location: | C10: =InputCurrent!C8 -> Metro
A11: Period: | C11: =InputCurrent!C10 -> 2014-06-30
A13: The Big Picture | N13: * Comparative analysis compares this period results against a previous period including a summary of the key movements between the periods.
A15: Dealership Profitability | H15: Gross Contribution
E16: Benchmark | L16: Benchmark
A17: Net profit % sales | C17: =InputCurrent!H125 -> 0.02791676644 | E17: 3-4% | H17: New | J17: =InputCurrent!G131 -> 0.5361811974 | L17: 0.32
H18: Used | J18: =InputCurrent!G132 -> 0.09467899076 | L18: 0.24
A19: Rent % Gross | C19: =InputCurrent!H126 -> 0.06661670414 | E19: 0.09 | H19: Front-end | J19: =SUM(J17:J18) -> 0.6308601882 | L19: =SUM(L17:L18) -> 0.56
A20: Admin & DP salary % Gross | C20: =InputCurrent!H127 -> 0.03997002248 | E20: 0.06
A21: Interest % Gross* | C21: =InputCurrent!H128 -> 0.01324006995 | E21: - | H21: Parts | J21: =InputCurrent!G133 -> 0.09459571988 | L21: 0.18
H22: Service | J22: =InputCurrent!G134 -> 0.2745440919 | L22: 0.26
A23: * Include overdraft & working capital, excluding floorplan | H23: Back-end | J23: =SUM(J21:J22) -> 0.3691398118 | L23: =SUM(L21:L22) -> 0.44
A25: Vehicle Operation
A27: New Vehicles | H27: Used Vehicles
E28: Benchmark | L28: Benchmark
A29: Total units per month | C29: =InputCurrent!C77 -> 140.8333333 | H29: Total units per month | J29: =InputCurrent!C112 -> 99.91666667
A30: Retail units per month | C30: =InputCurrent!C78 -> 140.8333333 | H30: Gross Profit % | J30: =InputCurrent!C114 -> 0.1158077001 | L30: 0.12
A31: Gross profit % | C31: =InputCurrent!C80 -> 0.118146789 | E31: 0.09
A32: Gross profit per unit* | C32: =InputCurrent!C81 -> 3810.059172 | E32: 2500 | G32: Retail | H32: Retail units per month | J32: =InputCurrent!C117 -> 40.16666667
A33: Days supply | C33: =InputCurrent!C83 -> 53.99414201 | E33: 50 | H33: Gross per unit | J33: =InputCurrent!C119 -> 2473.029046 | L33: 2500
A34: Units per sales staff per mth | C34: =InputCurrent!C84 -> 15.64814815 | E34: 14 | H34: Days supply | J34: =InputCurrent!C121 -> 94.65778008 | L34: 50
A35: Gross per sales person per mth | C35: =InputCurrent!C85 -> 59620.37037 | E35: 37000 | H35: Units per sales staff per mth | J35: =InputCurrent!C122 -> 13.38888889 | L35: 12
A36: Advertising per unit | C36: =InputCurrent!C86 -> 216.5680473 | E36: 175 | H36: Gross per sales person per mth | J36: =InputCurrent!C123 -> 33111.11111 | L36: 30000
A37: Floorplan per unit | C37: =InputCurrent!C87 -> 226.6272189 | E37: 350 | H37: Advertising per unit | J37: =InputCurrent!C124 -> 327.8008299 | L37: 220
A38: Salaries & Comm. per unit | C38: =InputCurrent!C88 -> 568.0473373 | E38: 875 | H38: Floorplan per unit | J38: =InputCurrent!C125 -> 0 | L38: 130
A39: Gross ROI | C39: =InputCurrent!C89 -> 0.8589389908 | E39: 0.75 | H39: Salaries & Comm. per unit | J39: =InputCurrent!C126 -> 800.8298755 | L39: 1000
H40: Used/new ratio | J40: =InputCurrent!C127 -> 0.2852071006 | L40: 0.7
A41: * Includes holdback, bonuses, and aftermarket
G42: w/s | H42: Wholesale units per month | J42: =InputCurrent!C130 -> 59.75
H43: Gross per unit (wholesale) | J43: =InputCurrent!C132 -> -76.70850767 | L43: 0
H45: Gross ROI | J45: =InputCurrent!C134 -> 0.5082619053 | L45: 0.8
A47: Fixed Operations
A49: Parts | H49: Service
E50: Benchmark | L50: Benchmark
A51: Monthly Sales | C51: =InputCurrent!H77 -> 409083.3333 | H51: Monthly Sales | J51: =InputCurrent!H88 -> 424333.3333
A52: Gross Profit % | C52: =InputCurrent!H79 -> 0.2314116928 | E52: 0.25 | H52: Gross Profit % | J52: =InputCurrent!H90 -> 0.6474862529 | L52: 0.65
A53: Days supply | C53: =InputCurrent!H80 -> 40.4373621 | E53: 45 | H53: Monthly Labour Sales | J53: =InputCurrent!H91 -> 334333.3333
A54: Mthly gross per staff | C54: =InputCurrent!H82 -> 11833.33333 | E54: 20000 | H54: Gross Profit % | J54: =InputCurrent!H93 -> 0.7345463609 | L54: 0.74
A55: $ sales per $ salary | C55: =InputCurrent!H83 -> 14.61011905 | E55: 13 | H55: Mthly labour gross per tech.* | J55: =InputCurrent!H95 -> 7201.857283 | L55: 12000
A56: Gross ROI | C56: =InputCurrent!H84 -> 2.717700371 | E56: 2 | H56: Unapplied time % COS | J56: =InputCurrent!H96 -> 0 | L56: 0.05
H57: Non-chargeable salaries % gross | J57: =InputCurrent!H97 -> 0.1998786776 | L57: 0.3
A58: * Apprentices and foreman are weighted to arrive at an adjusted | H58: Chargeable to non chargeable | J58: =InputCurrent!H98 -> 2.005882353 | L58: 2 to 1
A59: number of technicians. Please refer to input sheet. | H59: Technician to service advisor | J59: =InputCurrent!H99 -> 5.683333333 | L59: 5 to 1
H60: Parts/labour ratio | J60: =InputCurrent!H100 -> 0.8317535545 | L60: 0.75
A62: Finance & Insurance
A64: New & Used Vehicles | E64: Benchmark
A65: Finance penetration | C65: =InputCurrent!H105 -> 0.2536832413 | E65: 0.45
A66: Income per contract | C66: =InputCurrent!H106 -> 2695.099819 | E66: 2000
A67: Finance per retail unit | C67: =InputCurrent!H107 -> 683.7016575 | E67: 900
A68: Insurance per retail unit | C68: =InputCurrent!H108 -> 55.70902394 | E68: 100
A70: Total F&I Income per month | C70: =InputCurrent!H117 -> 133833.3333
A71: F&I Income per staff per mth | C71: =InputCurrent!H118 -> 66916.66667 | E71: 60000
A72: Units retailed per F&I staff per mth | C72: =InputCurrent!H119 -> 90.5 | E72: 60
A75: The information contained herein is of a general nature and is not intended to address the circumstances of any particular individual or entity. Although we endeavour to provide accurate and timely information, there can be no guarantee that such information is accurate as of the date it is received or that it will continue to be accurate in the future. No one is entitled to rely on this information and no one should act on such information without appropriate professional advice obtained after a thorough examination of the particular situation.
A77: “Grant Thornton” refers to the brand under which the Grant Thornton member firms provide assurance, tax and advisory services to their clients and/or refers to one or more member firms, as the context requires. Grant Thornton Australia Ltd is a member firm of Grant Thornton International Ltd (GTIL). GTIL and the member firms are not a worldwide partnership. GTIL and each member firm is a separate legal entity. Services are delivered by the member firms. GTIL does not provide services to clients. GTIL and its member firms are not agents of, and do not obligate one another and are not liable for one another’s acts or omissions. In the Australian context only, the use of the term 'Grant Thornton' may refer to Grant Thornton Australia Limited ABN 41 127 556 389 and its Australian subsidiaries and related entities. GTIL is not an Australian related entity to Grant Thornton Australia Limited.
A79: Liability limited by a scheme approved under Professional Standards Legislation. Liability is limited in those States where a current scheme applies.
A121: Location
A122: Metro | C122: Non-Luxury
A123: Regional | C123: Luxury
A124: Rural

Sheet InputPrior (hidden)
A1: Dealership Key Benchmark Analysis | L1: Dealership Key Benchmark Analysis
A2: Input Sheet - Prior Period | L2: Input Sheet - Prior Period
A5: Dealership: | C5: ='Dealership Details'!D9 -> Sample Motors | L5: ASSETS | Q5: LIABILITIES
A7: Franchise(s): | C7: ='Dealership Details'!D11 -> Ford, Kia | L7: Current Assets | Q7: Current Liabilities
A8: Location: | C8: ='Dealership Details'!D12 -> Metro | L8: Cash | N8: ='Assets PY'!D10 -> -235332 | Q8: Trade creditors | S8: ='Liabilities PY'!D11 -> 200000
A9: Type: | C9: ='Dealership Details'!D13 -> Non-Luxury | Q9: Floorplan | S9: ='Liabilities PY'!D12 -> 6500000
A10: Period: | C10: ='Comparative Details'!D9 -> 2013-06-30 | L10: Trade debtor | Q10: Short-term debt | S10: ='Liabilities PY'!D13 -> 100000
A11: No. of months: | C11: ='Comparative Details'!D10 -> 12 | L11: Vehicle | N11: ='Assets PY'!D12 -> 301000 | Q11: Other payables & provisions | S11: ='Liabilities PY'!D14 -> 250000
L12: Parts & Service | N12: ='Assets PY'!D13 -> 318000
L13: Factory | N13: ='Assets PY'!D14 -> 150000 | S13: =SUM(S8:S11) -> 7050000
A14: New Vehicles | F14: Parts | L14: Finance & Insurance | N14: ='Assets PY'!D15 -> 75000
N15: =SUM(N11:N14) -> 844000 | Q15: Non-current Liabilities
A16: Total Dealership | F16: Sales | H16: ='Parts PY'!D9 -> 4811000 | L16: Inventories | Q16: Long-term debt | S16: ='Liabilities PY'!D19 -> 2000000
A17: Total units sold | C17: ='New Vehicles PY'!D10 -> 1535 | F17: COS | H17: ='Parts PY'!D10 -> 3734000 | L17: New | N17: ='Assets PY'!D18 -> 5550000 | Q17: Other payables & provisions | S17: ='Liabilities PY'!D20 -> 0
A18: Retail units | C18: ='New Vehicles PY'!D11 -> 1535 | F18: Sales to workshop | H18: ='Parts PY'!D11 -> 1840000 | L18: Used | N18: ='Assets PY'!D19 -> 1282000 | Q18: Inter-group / Inter-company bal. | S18: ='Liabilities PY'!D21 -> 0
A19: Sales | C19: ='New Vehicles PY'!D12 -> 47368000 | F19: Parts Inventory on hand | H19: ='Parts PY'!D12 -> 335000 | L19: Parts & Accessories | N19: ='Assets PY'!D20 -> 335000
A20: COS | C20: ='New Vehicles PY'!D13 -> 44144000 | F20: Number of staff | H20: ='Parts PY'!D13 -> 8 | L20: Other | N20: ='Assets PY'!D21 -> 0 | S20: =SUM(S16:S18) -> 2000000
A21: Aftermarket gross (if not inc. above) | C21: ='New Vehicles PY'!D14 -> 0 | F21: Salaries & Comm. | H21: ='Parts PY'!D14 -> 338000 | N21: =SUM(N17:N20) -> 7167000
A22: Holdback and factory bonuses | C22: ='New Vehicles PY'!D15 -> 2327000 | S22: =S13+S20 -> 9050000
A23: Advertising | C23: ='New Vehicles PY'!D16 -> 366000 | F23: Service | L23: Other current assets | N23: ='Assets PY'!D24 -> 0
A24: Floorplan Interest | C24: ='New Vehicles PY'!D17 -> 362000 | Q24: NET ASSETS | S24: =N34-S22 -> 1116668
A25: Units on hand | C25: ='New Vehicles PY'!D18 -> 197 | F25: Total Sales | H25: ='Service PY'!D9 -> 4653000 | N25: =N8+N15+N21+N23 -> 7775668
A26: Number of sales staff | C26: ='New Vehicles PY'!D19 -> 10 | F26: Total COS | H26: ='Service PY'!D10 -> 1652000 | Q26: EQUITY
A27: Salaries & Commission | C27: ='New Vehicles PY'!D20 -> 821000 | F27: Labour Sales | H27: ='Service PY'!D11 -> 3705000 | L27: Non-current Assets
A28: - sales staff & managers only | F28: Labour COS | H28: ='Service PY'!D12 -> 1023000 | L28: Property, plant & equipment | N28: ='Assets PY'!D30 -> 2391000 | Q28: Contributed equity | S28: ='Liabilities PY'!D31 -> 100
F29: Unapplied time | H29: ='Service PY'!D13 -> 0 | L29: Goodwill & Intangibles | N29: ='Assets PY'!D31 -> 0 | Q29: Reserves | S29: ='Liabilities PY'!D32 -> 0
A30: Additional Franchises Information | F30: Labour Sales - Retail | H30: ='Service PY'!D14 -> 1885000 | L30: Other non-current assets | N30: ='Assets PY'!D32 -> 0 | Q30: Retained (earnings)/losses | S30: ='Liabilities PY'!D33 -> 1839024
A31: Franchise 1 | C31: ='New Vehicles PY'!D24 -> Ford
A32: Units sold | C32: ='New Vehicles PY'!D25 -> 1073 | F32: Number of chargeable staff | I32: Productive | N32: =SUM(N28:N30) -> 2391000 | S32: =SUM(S28:S30) -> 1839124
A33: Sales | C33: ='New Vehicles PY'!D26 -> 31295000 | F33: Qualified Technicians | H33: ='Service PY'!D17 -> 21 | I33: ='Service PY'!E17 -> 1
A34: COS | C34: ='New Vehicles PY'!D27 -> 29220000 | F34: 4th Year Apprentice | H34: ='Service PY'!D18 -> 0 | I34: ='Service PY'!E18 -> 0 | N34: =N25+N32 -> 10166668 | Q34: Check (should be zero) | S34: =S24-S32 -> -722456
A35: Holdback and factory bonuses | C35: ='New Vehicles PY'!D28 -> 1586000 | F35: 3rd Year Apprentice | H35: ='Service PY'!D19 -> 4 | I35: ='Service PY'!E19 -> 1
F36: 2nd Year Apprentice | H36: ='Service PY'!D20 -> 3 | I36: ='Service PY'!E20 -> 0.9
A37: Franchise 2 | C37: ='New Vehicles PY'!D30 -> Kia | F37: 1st Year Apprentice | H37: ='Service PY'!D21 -> 3 | I37: ='Service PY'!E21 -> 0.5
A38: Units sold | C38: ='New Vehicles PY'!D31 -> 462 | F38: Foreman (add % productivity) | H38: ='Service PY'!D22 -> 0 | I38: ='Service PY'!E22 -> 0
A39: Sales | C39: ='New Vehicles PY'!D32 -> 16073000 | H39: =(H33*I33)+(H34*I34)+(H35*I35)+(H36*I36)+(H37*I37)+(H38*I38) -> 29.2 | I39: Adjusted
A40: COS | C40: ='New Vehicles PY'!D33 -> 14924000 | F40: Number of non-chargeable staff
A41: Holdback and factory bonuses | C41: ='New Vehicles PY'!D34 -> 741000 | F41: Service Advisor | H41: ='Service PY'!D25 -> 5
F42: Other Staff | H42: ='Service PY'!D26 -> 15
A43: Franchise 3 | C43: ='New Vehicles PY'!D36 -> 0 | H43: =SUM(H41:H42) -> 20
A44: Units sold | C44: ='New Vehicles PY'!D37 -> 0
A45: Sales | C45: ='New Vehicles PY'!D38 -> 0 | F45: Salaries & Comm. | H45: ='Service PY'!D29 -> 575000
A46: COS | C46: ='New Vehicles PY'!D39 -> 0
A47: Holdback and factory bonuses | C47: ='New Vehicles PY'!D40 -> 0 | F47: F&I
A49: Used Vehicles | F49: New
F50: Finance Income | H50: ='F&I PY'!D10 -> 1332000
A51: Retail | F51: No. of contracts | H51: ='F&I PY'!D11 -> 497
A52: Units Sold | C52: ='Used Vehicles PY'!D10 -> 495 | F52: Insurance Income | H52: ='F&I PY'!D12 -> 115000
A53: Sales | C53: ='Used Vehicles PY'!D11 -> 9602000
A54: COS | C54: ='Used Vehicles PY'!D12 -> 8561000 | F54: Used
A55: Aftermarket Gross | C55: ='Used Vehicles PY'!D13 -> 0 | F55: Finance Income | H55: ='F&I PY'!D15 -> 0
A56: Advertising | C56: ='Used Vehicles PY'!D14 -> 173000 | F56: No. of contracts | H56: ='F&I PY'!D16 -> 0
A57: Floorplan Interest | C57: ='Used Vehicles PY'!D15 -> 0 | F57: Insurance Income | H57: ='F&I PY'!D17 -> 0
A58: Units on hand | C58: ='Used Vehicles PY'!D16 -> 52
A59: Number of sales staff | C59: ='Used Vehicles PY'!D17 -> 2.5 | F59: No. of staff | H59: ='F&I PY'!D19 -> 2
A60: Salaries & Commission | C60: ='Used Vehicles PY'!D18 -> 438532 | F60: Salaries & Commission | H60: ='F&I PY'!D20 -> 268000
A61: - sales staff & managers, excluding wholesale manager
F62: Admin
A63: Wholesale
A64: Units Sold | C64: ='Used Vehicles PY'!D22 -> 737 | F64: Net profit | H64: ='Admin PY'!D9 -> 1575000
A65: Sales | C65: ='Used Vehicles PY'!D23 -> 4657000 | F65: Rent expense | H65: ='Admin PY'!D10 -> 788000
A66: COS | C66: ='Used Vehicles PY'!D24 -> 4508000 | F66: Admin & DP salary & commission | H66: ='Admin PY'!D11 -> 530000
F67: Interest (Overdraft, working cap.) | H67: ='Admin PY'!D12 -> 155000
F68: Other Income (If applicable) | H68: ='Admin PY'!D13 -> 0
A72: Dealership Key Benchmark Analysis | L72: Dealership Key Benchmark Analysis
A73: Calculated Sheet - Prior Period | L73: Calculated Sheet - Prior Period
A75: New | F75: Parts | L75: Profit Reconciliation
A77: Units per month | C77: =C17/$C$11 -> 127.9166667 | F77: Monthly Sales | H77: =H16/$C$11 -> 400916.6667 | L77: NEW
A78: Retailed Units per month | C78: =C18/$C$11 -> 127.9166667 | F78: Gross Profit | H78: =H16-H17 -> 1077000 | L78: GP | N78: =H131 -> 5551000
A79: Gross Profit (inc. holdback & A/market) | C79: =C19-C20+C22+C21 -> 5551000 | F79: Gross Profit % | H79: =H78/H16 -> 0.223861983 | L79: Advertising | N79: =-C23 -> -366000
A80: Gross Profit Margin | C80: =C79/C19 -> 0.1171888195 | F80: Days supply | H80: =H19/((H77*(1-H79))/30.4167) -> 32.74642046 | L80: Floorplan Interest | N80: =-C24 -> -362000
A81: Gross per unit | C81: =C79/C17 -> 3616.286645 | F81: Mthly sales per staff | H81: =H77/H20 -> 50114.58333 | L81: Salaries & Commission | N81: =-C27 -> -821000
A82: Aftermarket per retail unit | C82: =C21/C18 -> 0 | F82: Mthly gross per staff | H82: =H78/H20/$C$11 -> 11218.75 | L82: Adjusted Contribution | N82: =SUM(N78:N81) -> 4002000
A83: Days supply | C83: =C25/(C77/30.4167) -> 46.84369954 | F83: $ sales per $ salary | H83: =H16/H21 -> 14.23372781
A84: Units per sales staff per mth | C84: =C77/C26 -> 12.79166667 | F84: Gross ROI | H84: =(H78/H17)*(365/H80) -> 3.21492185 | L84: USED
A85: Gross per sales person per mth | C85: =(C79-C21)/C26/$C$11 -> 46258.33333 | L85: Retail
A86: Advertising per unit | C86: =C23/C17 -> 238.4364821 | F86: Service | L86: GP | N86: =C118 -> 1041000
A87: Floorplan per unit | C87: =C24/C17 -> 235.8306189 | L87: Advertising | N87: =-C56 -> -173000
A88: Salaries & Comm. per unit | C88: =C27/C17 -> 534.8534202 | F88: Monthly Sales | H88: =H25/$C$11 -> 387750 | L88: Floorplan Interest | N88: =-C57 -> 0
A89: Gross ROI | C89: =(C79/C20)*(365/C83) -> 0.9798085433 | F89: Gross Profit | H89: =H25-H26 -> 3001000 | L89: Salaries & Commission | N89: =-C60 -> -438532
F90: Gross Profit % | H90: =H89/H25 -> 0.6449602407 | N90: =SUM(N86:N89) -> 429468
A91: Additional Franchises Information | F91: Monthly Labour Sales | H91: =H27/$C$11 -> 308750 | L91: Wholesale
A92: Units per month | C92: =C32/$C$11 -> 89.41666667 | F92: Gross Profit | H92: =H27-H28-H29 -> 2682000 | L92: GP | N92: =C131 -> 149000
A93: Gross Profit (inc. holdback) | C93: =C33-C34+C35 -> 3661000 | F93: Gross Profit % | H93: =H92/H27 -> 0.7238866397 | L93: Adjusted Contribution | N93: =N90+N92 -> 578468
A94: Gross Profit Margin | C94: =C93/C33 -> 0.1169835437 | F94: Mthly sales per technician | H94: =H91/H39 -> 10573.63014
A95: Gross per unit | C95: =C93/C32 -> 3411.929171 | F95: Mthly labour gross per technician | H95: =H92/H39/$C$11 -> 7654.109589 | L95: PARTS
F96: Unapplied time% labour COS | H96: =H29/(H28+H29) -> 0 | L96: GP | N96: =H78 -> 1077000
F97: Non-chargeable salaries % gross | H97: =H45/H89 -> 0.1916027991 | L97: Salaries & Commission | N97: =-H21 -> -338000
A98: Units per month | C98: =C38/$C$11 -> 38.5 | F98: Chargeable/ non-chargeable | H98: =H39/H43 -> 1.46 | L98: Adjusted Contribution | N98: =SUM(N96:N97) -> 739000
A99: Gross Profit (inc. holdback) | C99: =C39-C40+C41 -> 1890000 | F99: Technician to service advisor | H99: =H39/H41 -> 5.84
A100: Gross Profit Margin | C100: =C99/C39 -> 0.1175885025 | F100: Parts (workshop) /labour (retail) | H100: =H18/H30 -> 0.976127321 | L100: SERVICE
A101: Gross per unit | C101: =C99/C38 -> 4090.909091 | L101: Labour GP | N101: =H92 -> 2682000
F102: F&I | L102: Other GP | N102: =H89-H92 -> 319000
L103: Unapplied time | N103: =-H29 -> 0
A104: Units per month | C104: =C44/$C$11 -> 0 | F104: New Vehicles | L104: Salaries & Commission | N104: =-H45 -> -575000
A105: Gross Profit (inc. holdback) | C105: =C45-C46+C47 -> 0 | F105: Finance penetration | H105: =H51/(C18+C52) -> 0.2448275862 | L105: Adjusted Contribution | N105: =SUM(N101:N104) -> 2426000
A106: Gross Profit Margin | C106: =C105/C45 ->  | F106: Income per contract | H106: =H50/H51 -> 2680.080483
A107: Gross per unit | C107: =C105/C44 ->  | F107: Finance per retail unit | H107: =H50/(C18+C52) -> 656.1576355 | L107: F&I
F108: Insurance per retail unit | H108: =H52/(C18+C52) -> 56.65024631 | L108: Finance - New | N108: =H50 -> 1332000
A109: Used | L109: Finance - Used | N109: =H55 -> 0
F110: Used Vehicles | L110: Insurance - New | N110: =H52 -> 115000
A111: Total Units sold | C111: =(C52+C64) -> 1232 | F111: Finance penetration | H111: =H56/C52 -> 0 | L111: Insurance - Used | N111: =H57 -> 0
A112: Total Units per month | C112: =C111/$C$11 -> 102.6666667 | F112: Income per contract | H112: =H55/H56 ->  | L112: Salaries & Commission | N112: =-H60 -> -268000
A113: Gross Profit (inc. w/s gross) | C113: =(C53-C54+C55)+(C65-C66) -> 1190000 | F113: Finance per retail unit | H113: =H55/C52 -> 0 | L113: Adjusted Contribution | N113: =SUM(N108:N112) -> 1179000
A114: Gross Profit % | C114: =C113/C53 -> 0.1239325141 | F114: Insurance per retail unit | H114: =H57/C52 -> 0
L115: Total Departmental Contribution | N115: =N82++N93+N98+N105+N113 -> 8924468
A116: Retail | F116: Total F&I Income | H116: =H50+H52+H55+H57 -> 1447000
A117: Retail Units per month | C117: =C52/$C$11 -> 41.25 | F117: F&I Income per mth | H117: =H116/C11 -> 120583.3333 | L117: ADMIN
A118: Retail Gross Profit (inc. a/market) | C118: =C53-C54+C55 -> 1041000 | F118: F&I Income per staff per mth | H118: =H117/H59 -> 60291.66667 | L118: Rent expense | N118: =-H65 -> -788000
A119: Gross per unit (retail) | C119: =C118/C52 -> 2103.030303 | F119: Units retailed per F&I staff per mth | H119: =(C18+C52)/H59/12 -> 84.58333333 | L119: Admin & DP salary & commission | N119: =-H66 -> -530000
A120: Aftermarket per unit | C120: =C55/C52 -> 0 | L120: Interest (Overdraft, working cap.) | N120: =-H67 -> -155000
A121: Days supply | C121: =C58/(C117/30.4167) -> 38.34347636 | F121: Big Picture | L121: Other income | N121: =H68 -> 0
A122: Units per sales staff per mth | C122: =C117/C59 -> 16.5 | L122: Other expenses | N122: =-(-H64+N118+N119+N120+N121+N115) -> -5876468
A123: Gross per sales person per mth | C123: =(C118-C55)/C59/C11 -> 34700 | F123: Total Sales (inc used w/s) | H123: =C19+C53+C65+H16+H25 -> 71091000 | L123: Adjusted Contribution | N123: =SUM(N118:N122) -> -7349468
A124: Advertising per retail unit | C124: =C56/C52 -> 349.4949495 | F124: Total Gross (inc used w/s) | H124: =C79+C113+H78+H89 -> 10819000
A125: Floorplan per retail unit | C125: =C57/C52 -> 0 | F125: Net Profit % sales | H125: =H64/H123 -> 0.02215470313 | L125: Net Profit | N125: =N115+N123 -> 1575000
A126: Salaries & Comm. retail per retail unit | C126: =C60/C52 -> 885.9232323 | F126: Rent % Gross | H126: =H65/H124 -> 0.07283482762
A127: Used/new ratio | C127: =C117/C78 -> 0.32247557 | F127: Admin & DP salary % Gross | H127: =H66/H124 -> 0.04898789167
F128: Interest % Gross | H128: =H67/H124 -> 0.01432664756
A129: Wholesale
A130: Wholesale Units per month | C130: =C64/$C$11 -> 61.41666667 | F130: Gross contribution
A131: Wholesale Gross Profit | C131: =C65-C66 -> 149000 | F131: New | G131: =H131/$H$124 -> 0.5130788428 | H131: =C79 -> 5551000
A132: Gross per unit (wholesale) | C132: =C131/C64 -> 202.1709634 | F132: Used | G132: =H132/$H$124 -> 0.1099916813 | H132: =C113 -> 1190000
F133: Parts | G133: =H133/$H$124 -> 0.09954709308 | H133: =H78 -> 1077000
A134: Gross ROI | C134: =(C113/C54)*(365/C121) -> 1.323194977 | F134: Service | G134: =H134/$H$124 -> 0.2773823828 | H134: =H89 -> 3001000
A200: Drop down List Box
A202: Location | C202: Type
A203: Metro | C203: Non-Luxury
A204: Regional | C204: Luxury
A205: Rural

Sheet Comparative
A5: Key Comparative Analysis
A7: Dealership: | C7: =InputCurrent!C5 -> Sample Motors
A9: Franchise(s): | C9: =InputCurrent!C7 -> Ford, Kia
A10: Location: | C10: =InputCurrent!C8 -> Metro
A11: Period: | C11: =InputCurrent!C10 -> 2014-06-30
A13: The Big Picture
A15: Dealership Profitability | C15: =C11 -> 2014-06-30 | E15: =InputPrior!C10 -> 2013-06-30 | H15: Gross Contribution | J15: =C15 -> 2014-06-30 | L15: =E15 -> 2013-06-30
A17: Net profit % sales | B17: =IF(C17>E17,"p",IF(C17=E17,"1","q")) -> p | C17: =InputCurrent!H125 -> 0.02791676644 | E17: =InputPrior!H125 -> 0.02215470313 | H17: New | J17: =InputCurrent!G131 -> 0.5361811974 | L17: =InputPrior!G131 -> 0.5130788428
H18: Used | J18: =InputCurrent!G132 -> 0.09467899076 | L18: =InputPrior!G132 -> 0.1099916813
A19: Rent % Gross | B19: =IF(C19>E19,"p",IF(C19=E19,"1","q")) -> q | C19: =InputCurrent!H126 -> 0.06661670414 | E19: =InputPrior!H126 -> 0.07283482762 | H19: Front-end | J19: =SUM(J17:J18) -> 0.6308601882 | L19: =SUM(L17:L18) -> 0.6230705241
A20: Admin & DP salary % Gross | B20: =IF(C20>E20,"p",IF(C20=E20,"1","q")) -> q | C20: =InputCurrent!H127 -> 0.03997002248 | E20: =InputPrior!H127 -> 0.04898789167
A21: Interest % Gross* | B21: =IF(C21>E21,"p",IF(C21=E21,"1","q")) -> q | C21: =InputCurrent!H128 -> 0.01324006995 | E21: =InputPrior!H128 -> 0.01432664756 | H21: Parts | J21: =InputCurrent!G133 -> 0.09459571988 | L21: =InputPrior!G133 -> 0.09954709308
H22: Service | J22: =InputCurrent!G134 -> 0.2745440919 | L22: =InputPrior!G134 -> 0.2773823828
A23: * Include overdraft & working capital, excluding floorplan | H23: Back-end | J23: =SUM(J21:J22) -> 0.3691398118 | L23: =SUM(L21:L22) -> 0.3769294759
A25: Vehicle Operation
A27: New Vehicles | C27: =C15 -> 2014-06-30 | E27: =E15 -> 2013-06-30 | H27: Used Vehicles | J27: =C15 -> 2014-06-30 | L27: =E15 -> 2013-06-30
A29: Total units per month | B29: =IF(C29>E29,"p",IF(C29=E29,"1","q")) -> p | C29: =InputCurrent!C77 -> 140.8333333 | E29: =InputPrior!C77 -> 127.9166667 | H29: Total units per month | I29: =IF(J29>L29,"p",IF(J29=L29,"1","q")) -> q | J29: =InputCurrent!C112 -> 99.91666667 | L29: =InputPrior!C112 -> 102.6666667
A30: Retail units per month | B30: =IF(C30>E30,"p",IF(C30=E30,"1","q")) -> p | C30: =InputCurrent!C78 -> 140.8333333 | E30: =InputPrior!C78 -> 127.9166667 | H30: Gross Profit % | I30: =IF(J30>L30,"p",IF(J30=L30,"1","q")) -> q | J30: =InputCurrent!C114 -> 0.1158077001 | L30: =InputPrior!C114 -> 0.1239325141
A31: Gross profit % | B31: p | C31: =InputCurrent!C80 -> 0.118146789 | E31: =InputPrior!C80 -> 0.1171888195
A32: Gross profit per unit* | B32: p | C32: =InputCurrent!C81 -> 3810.059172 | E32: =InputPrior!C81 -> 3616.286645 | G32: Retail | H32: Retail units per month | I32: q | J32: =InputCurrent!C117 -> 40.16666667 | L32: =InputPrior!C117 -> 41.25
A33: Days supply | B33: p | C33: =InputCurrent!C83 -> 53.99414201 | E33: =InputPrior!C83 -> 46.84369954 | H33: Gross per unit | I33: p | J33: =InputCurrent!C119 -> 2473.029046 | L33: =InputPrior!C119 -> 2103.030303
A34: Units per sales staff per mth | B34: p | C34: =InputCurrent!C84 -> 15.64814815 | E34: =InputPrior!C84 -> 12.79166667 | H34: Days supply | I34: p | J34: =InputCurrent!C121 -> 94.65778008 | L34: =InputPrior!C121 -> 38.34347636
A35: Gross per sales person per mth | B35: p | C35: =InputCurrent!C85 -> 59620.37037 | E35: =InputPrior!C85 -> 46258.33333 | H35: Units per sales staff per mth | I35: q | J35: =InputCurrent!C122 -> 13.38888889 | L35: =InputPrior!C122 -> 16.5
A36: Advertising per unit | B36: q | C36: =InputCurrent!C86 -> 216.5680473 | E36: =InputPrior!C86 -> 238.4364821 | H36: Gross per sales person per mth | I36: q | J36: =InputCurrent!C123 -> 33111.11111 | L36: =InputPrior!C123 -> 34700
A37: Floorplan per unit | B37: q | C37: =InputCurrent!C87 -> 226.6272189 | E37: =InputPrior!C87 -> 235.8306189 | H37: Advertising per unit | I37: q | J37: =InputCurrent!C124 -> 327.8008299 | L37: =InputPrior!C124 -> 349.4949495
A38: Salaries & Comm. per unit | B38: p | C38: =InputCurrent!C88 -> 568.0473373 | E38: =InputPrior!C88 -> 534.8534202 | H38: Floorplan per unit | I38: 1 | J38: =InputCurrent!C125 -> 0 | L38: =InputPrior!C125 -> 0
A39: Gross ROI | B39: q | C39: =InputCurrent!C89 -> 0.8589389908 | E39: =InputPrior!C89 -> 0.9798085433 | H39: Salaries & Comm. per unit | I39: q | J39: =InputCurrent!C126 -> 800.8298755 | L39: =InputPrior!C126 -> 885.9232323
H40: Used/new ratio | I40: q | J40: =InputCurrent!C127 -> 0.2852071006 | L40: =InputPrior!C127 -> 0.32247557
A41: * Includes holdback, bonuses, and aftermarket
G42: w/s | H42: Wholesale units per month | I42: q | J42: =InputCurrent!C130 -> 59.75 | L42: =InputPrior!C130 -> 61.41666667
H43: Gross per unit (wholesale) | I43: q | J43: =InputCurrent!C132 -> -76.70850767 | L43: =InputPrior!C132 -> 202.1709634
H45: Gross ROI | I45: q | J45: =InputCurrent!C134 -> 0.5082619053 | L45: =InputPrior!C134 -> 1.323194977
A47: Fixed Operations
A49: Parts | C49: =C15 -> 2014-06-30 | E49: =E15 -> 2013-06-30 | H49: Service | J49: =C15 -> 2014-06-30 | L49: =E15 -> 2013-06-30
A51: Monthly Sales | B51: =IF(C51>E51,"p",IF(C51=E51,"1","q")) -> p | C51: =InputCurrent!H77 -> 409083.3333 | E51: =InputPrior!H77 -> 400916.6667 | H51: Monthly Sales | I51: =IF(J51>L51,"p",IF(J51=L51,"1","q")) -> p | J51: =InputCurrent!H88 -> 424333.3333 | L51: =InputPrior!H88 -> 387750
A52: Gross Profit % | B52: p | C52: =InputCurrent!H79 -> 0.2314116928 | E52: =InputPrior!H79 -> 0.223861983 | H52: Gross Profit % | I52: =IF(J52>L52,"p",IF(J52=L52,"1","q")) -> p | J52: =InputCurrent!H90 -> 0.6474862529 | L52: =InputPrior!H90 -> 0.6449602407
A53: Days supply | B53: p | C53: =InputCurrent!H80 -> 40.4373621 | E53: =InputPrior!H80 -> 32.74642046 | H53: Monthly Labour Sales | I53: p | J53: =InputCurrent!H91 -> 334333.3333 | L53: =InputPrior!H91 -> 308750
A54: Mthly gross per staff | B54: p | C54: =InputCurrent!H82 -> 11833.33333 | E54: =InputPrior!H82 -> 11218.75 | H54: Gross Profit % | I54: p | J54: =InputCurrent!H93 -> 0.7345463609 | L54: =InputPrior!H93 -> 0.7238866397
A55: $ sales per $ salary | B55: p | C55: =InputCurrent!H83 -> 14.61011905 | E55: =InputPrior!H83 -> 14.23372781 | H55: Mthly labour gross per tech.* | I55: q | J55: =InputCurrent!H95 -> 7201.857283 | L55: =InputPrior!H95 -> 7654.109589
A56: Gross ROI | B56: q | C56: =InputCurrent!H84 -> 2.717700371 | E56: =InputPrior!H84 -> 3.21492185 | H56: Unapplied time % COS | I56: 1 | J56: =InputCurrent!H96 -> 0 | L56: =InputPrior!H96 -> 0
H57: Non-chargeable salaries % gross | I57: p | J57: =InputCurrent!H97 -> 0.1998786776 | L57: =InputPrior!H97 -> 0.1916027991
A58: * Apprentices and foreman are weighted to arrive at an adjusted | H58: Chargeable to non chargeable | I58: p | J58: =InputCurrent!H98 -> 2.005882353 | L58: =InputPrior!H98 -> 1.46
A59: number of technicians. Please refer to input sheet. | H59: Technician to service advisor | I59: q | J59: =InputCurrent!H99 -> 5.683333333 | L59: =InputPrior!H99 -> 5.84
H60: Parts/labour ratio | I60: q | J60: =InputCurrent!H100 -> 0.8317535545 | L60: =InputPrior!H100 -> 0.976127321
A62: Finance & Insurance
A64: New & Used Vehicles | C64: =C15 -> 2014-06-30 | E64: =E27 -> 2013-06-30
A65: Finance penetration | B65: =IF(C65>E65,"p",IF(C65=E65,"1","q")) -> p | C65: =InputCurrent!H105 -> 0.2536832413 | E65: =InputPrior!H105 -> 0.2448275862
A66: Income per contract | B66: =IF(C66>E66,"p",IF(C66=E66,"1","q")) -> p | C66: =InputCurrent!H106 -> 2695.099819 | E66: =InputPrior!H106 -> 2680.080483
A67: Finance per retail unit | B67: p | C67: =InputCurrent!H107 -> 683.7016575 | E67: =InputPrior!H107 -> 656.1576355
A68: Insurance per retail unit | B68: q | C68: =InputCurrent!H108 -> 55.70902394 | E68: =InputPrior!H108 -> 56.65024631
A70: Total F&I Income per month | B70: p | C70: =InputCurrent!H117 -> 133833.3333 | E70: =InputPrior!H117 -> 120583.3333
A71: F&I Income per staff per mth | B71: p | C71: =InputCurrent!H118 -> 66916.66667 | E71: =InputPrior!H118 -> 60291.66667
A72: Units retailed per F&I staff per mth | B72: p | C72: =InputCurrent!H119 -> 90.5 | E72: =InputPrior!H119 -> 84.58333333
A74: The information contained herein is of a general nature and is not intended to address the circumstances of any particular individual or entity. Although we endeavour to provide accurate and timely information, there can be no guarantee that such information is accurate as of the date it is received or that it will continue to be accurate in the future. No one is entitled to rely on this information and no one should act on such information without appropriate professional advice obtained after a thorough examination of the particular situation.
A76: “Grant Thornton” refers to the brand under which the Grant Thornton member firms provide assurance, tax and advisory services to their clients and/or refers to one or more member firms, as the context requires. Grant Thornton Australia Ltd is a member firm of Grant Thornton International Ltd (GTIL). GTIL and the member firms are not a worldwide partnership. GTIL and each member firm is a separate legal entity. Services are delivered by the member firms. GTIL does not provide services to clients. GTIL and its member firms are not agents of, and do not obligate one another and are not liable for one another’s acts or omissions. In the Australian context only, the use of the term 'Grant Thornton' may refer to Grant Thornton Australia Limited ABN 41 127 556 389 and its Australian subsidiaries and related entities. GTIL is not an Australian related entity to Grant Thornton Australia Limited.
A78: Liability limited by a scheme approved under Professional Standards Legislation. Liability is limited in those States where a current scheme applies.
A123: Location
A124: Metro | C124: Non-Luxury
A125: Regional | C125: Luxury
A126: Rural

Sheet Movement
A5: Key Movements Analysis
A7: Dealership: | D7: =InputCurrent!C5 -> Sample Motors
A9: Franchise(s): | D9: =InputCurrent!C7 -> Ford, Kia
A10: Location: | D10: =InputCurrent!C8 -> Metro
A11: Period: | D11: =InputCurrent!C10 -> 2014-06-30
A14: Net Profit Movement
I15: Net Profit | K15: % Sales
A17: Current Period Net Profit | G17: =D11 -> 2014-06-30 | I17: =InputCurrent!H64 -> 2215000 | K17: =InputCurrent!H125 -> 0.02791676644
A18: Prior Period Net Profit | G18: =InputPrior!C10 -> 2013-06-30 | I18: =InputPrior!H64 -> 1575000 | K18: =InputPrior!H125 -> 0.02215470313
A20: =IF(I20>0,"Net Profit Increase","Net Profit Decrease") -> Net Profit Increase | H20: =IF(I20>0,"p",IF(I20=0,"1","q")) -> p | I20: =InputCurrent!H64-InputPrior!H64 -> 640000 | K20: =K17-K18 -> 0.005762063317
A23: New Vehicles Movements
K24: Profit Effect
A26: =IF(K26>0,"Increased","Decreased") -> Increased | B26: Gross Profit | J26: =IF(K26>0,"p",IF(K26=0,"1","q")) -> p | K26: =InputCurrent!C79-InputPrior!C79 -> 888000
B27: Units sold | C27: =IF(D27>0,"p",IF(D27=0,"1","q")) -> p | D27: =InputCurrent!C17-InputPrior!C17 -> 155 | E27: x | F27: =InputPrior!C81 -> 3616.286645 | G27: per unit | H27: = | I27: =D27*F27 -> 560524.43
B28: Gross profit per unit | C28: =IF(D28>0,"p",IF(D28=0,"1","q")) -> p | D28: =InputCurrent!C81-InputPrior!C81 -> 193.7725266 | E28: x | F28: =InputCurrent!C17 -> 1690 | G28: units | H28: = | I28: =F28*D28 -> 327475.57
A30: =IF(-K30>0,"Increased","Decreased") -> Decreased | B30: Advertising | J30: =IF(K30>0,"p",IF(K30=0,"1","q")) -> 1 | K30: =InputCurrent!N79-InputPrior!N79 -> 0
B31: Units sold | C31: =IF(D31>0,"p",IF(D31=0,"1","q")) -> p | D31: =InputCurrent!C17-InputPrior!C17 -> 155 | E31: x | F31: =InputPrior!C86 -> 238.4364821 | G31: per unit | H31: = | I31: =D31*F31 -> 36957.65472
B32: Advertising per unit | C32: =IF(D32>0,"p",IF(D32=0,"1","q")) -> q | D32: =InputCurrent!C86-InputPrior!C86 -> -21.86843475 | E32: x | F32: =InputCurrent!C17 -> 1690 | G32: units | H32: = | I32: =D32*F32 -> -36957.65472
A34: =IF(-K34>0,"Increased","Decreased") -> Increased | B34: Floorplan Interest | J34: =IF(K34>0,"p",IF(K34=0,"1","q")) -> q | K34: =InputCurrent!N80-InputPrior!N80 -> -21000
B35: Units sold | C35: =IF(D35>0,"p",IF(D35=0,"1","q")) -> p | D35: =InputCurrent!C17-InputPrior!C17 -> 155 | E35: x | F35: =InputPrior!C87 -> 235.8306189 | G35: per unit | H35: = | I35: =D35*F35 -> 36553.74593
B36: Floorplan per unit | C36: =IF(D36>0,"p",IF(D36=0,"1","q")) -> q | D36: =InputCurrent!C87-InputPrior!C87 -> -9.203399958 | E36: x | F36: =InputCurrent!C17 -> 1690 | G36: units | H36: = | I36: =D36*F36 -> -15553.74593
B37: Days supply | C37: =IF(D37>0,"p",IF(D37=0,"1","q")) -> p | D37: =InputCurrent!C83-InputPrior!C83 -> 7.150442468
A39: =IF(-K39>0,"Increased","Decreased") -> Increased | B39: Salaries & Commission | J39: =IF(K39>0,"p",IF(K39=0,"1","q")) -> q | K39: =InputCurrent!N81-InputPrior!N81 -> -139000
B40: Units sold | C40: =IF(D40>0,"p",IF(D40=0,"1","q")) -> p | D40: =InputCurrent!C17-InputPrior!C17 -> 155 | E40: x | F40: =InputPrior!C88 -> 534.8534202 | G40: per unit | H40: = | I40: =D40*F40 -> 82902.28013
B41: Salaries & Comm. per unit | C41: =IF(D41>0,"p",IF(D41=0,"1","q")) -> p | D41: =InputCurrent!C88-InputPrior!C88 -> 33.19391708 | E41: x | F41: =InputCurrent!C17 -> 1690 | G41: units | H41: = | I41: =D41*F41 -> 56097.71987
B42: No. of sales staff | C42: =IF(D42>0,"p",IF(D42=0,"1","q")) -> q | D42: =InputCurrent!C26-InputPrior!C26 -> -1
B43: Units per sales staff per mth | C43: =IF(D43>0,"p",IF(D43=0,"1","q")) -> p | D43: =InputCurrent!C84-InputPrior!C84 -> 2.856481481
B44: Gross per sales staff per mth | C44: =IF(D44>0,"p",IF(D44=0,"1","q")) -> p | D44: =InputCurrent!C85-InputPrior!C85 -> 13362.03704
H46: e | I46: =IF(K46>0,"Net Increase",IF(K46=0,"No Change","Net Decrease")) -> Net Increase | K46: =SUM(K26:K44) -> 728000
A48: Used Vehicles Movements
K49: Profit Effect
A51: =IF(K51>0,"Increased","Decreased") -> Increased | B51: Retail Gross Profit | J51: =IF(K51>0,"p",IF(K51=0,"1","q")) -> p | K51: =InputCurrent!N86-InputPrior!N86 -> 151000
B52: Units sold | C52: =IF(D52>0,"p",IF(D52=0,"1","q")) -> q | D52: =InputCurrent!C52-InputPrior!C52 -> -13 | E52: x | F52: =InputPrior!C119 -> 2103.030303 | G52: per unit | H52: = | I52: =D52*F52 -> -27339.39394
B53: Gross profit per unit | C53: =IF(D53>0,"p",IF(D53=0,"1","q")) -> p | D53: =InputCurrent!C119-InputPrior!C119 -> 369.9987426 | E53: x | F53: =InputCurrent!C52 -> 482 | G53: units | H53: = | I53: =F53*D53 -> 178339.3939
A55: =IF(-K55>0,"Increased","Decreased") -> Decreased | B55: Advertising | J55: =IF(K55>0,"p",IF(K55=0,"1","q")) -> p | K55: =InputCurrent!N87-InputPrior!N87 -> 15000
B56: Units sold | C56: =IF(D56>0,"p",IF(D56=0,"1","q")) -> q | D56: =InputCurrent!C52-InputPrior!C52 -> -13 | E56: x | F56: =InputPrior!C124 -> 349.4949495 | G56: per unit | H56: = | I56: =D56*F56 -> -4543.434343
B57: Advertising per unit | C57: =IF(D57>0,"p",IF(D57=0,"1","q")) -> q | D57: =InputCurrent!C124-InputPrior!C124 -> -21.69411962 | E57: x | F57: =InputCurrent!C52 -> 482 | G57: units | H57: = | I57: =D57*F57 -> -10456.56566
A59: =IF(-K59>0,"Increased","Decreased") -> Decreased | B59: Floorplan Interest | J59: =IF(K59>0,"p",IF(K59=0,"1","q")) -> 1 | K59: =InputCurrent!N88-InputPrior!N88 -> 0
B60: Units sold | C60: =IF(D60>0,"p",IF(D60=0,"1","q")) -> q | D60: =InputCurrent!C52-InputPrior!C52 -> -13 | E60: x | F60: =InputPrior!C125 -> 0 | G60: per unit | H60: = | I60: =D60*F60 -> 0
B61: Floorplan per unit | C61: =IF(D61>0,"p",IF(D61=0,"1","q")) -> 1 | D61: =InputCurrent!C125-InputPrior!C125 -> 0 | E61: x | F61: =InputCurrent!C52 -> 482 | G61: units | H61: = | I61: =D61*F61 -> 0
B62: Days supply | C62: =IF(D62>0,"p",IF(D62=0,"1","q")) -> p | D62: =InputCurrent!C121-InputPrior!C121 -> 56.31430372
A64: =IF(-K64>0,"Increased","Decreased") -> Decreased | B64: Salaries & Commission | J64: =IF(K64>0,"p",IF(K64=0,"1","q")) -> p | K64: =InputCurrent!N89-InputPrior!N89 -> 52532
B65: Units sold | C65: =IF(D65>0,"p",IF(D65=0,"1","q")) -> q | D65: =InputCurrent!C52-InputPrior!C52 -> -13 | E65: x | F65: =InputPrior!C126 -> 885.9232323 | G65: per unit | H65: = | I65: =D65*F65 -> -11517.00202
B66: Salaries & Comm. per unit | C66: =IF(D66>0,"p",IF(D66=0,"1","q")) -> q | D66: =InputCurrent!C126-InputPrior!C126 -> -85.0933568 | E66: x | F66: =InputCurrent!C52 -> 482 | G66: units | H66: = | I66: =D66*F66 -> -41014.99798
B67: No. of sales staff | C67: =IF(D67>0,"p",IF(D67=0,"1","q")) -> p | D67: =InputCurrent!C59-InputPrior!C59 -> 0.5
B68: Units per sales staff per mth | C68: =IF(D68>0,"p",IF(D68=0,"1","q")) -> q | D68: =InputCurrent!C122-InputPrior!C122 -> -3.111111111
B69: Gross per sales staff per mth | C69: =IF(D69>0,"p",IF(D69=0,"1","q")) -> q | D69: =InputCurrent!C123-InputPrior!C123 -> -1588.888889
A71: =IF(K71>0,"Increased","Decreased") -> Decreased | B71: Wholesale Gross Profit | J71: =IF(K71>0,"p",IF(K71=0,"1","q")) -> q | K71: =InputCurrent!N92-InputPrior!N92 -> -204000
B72: Units sold | C72: =IF(D72>0,"p",IF(D72=0,"1","q")) -> q | D72: =InputCurrent!C64-InputPrior!C64 -> -20 | E72: x | F72: =InputPrior!C132 -> 202.1709634 | G72: per unit | H72: = | I72: =D72*F72 -> -4043.419267
B73: Gross profit per unit | C73: =IF(D73>0,"p",IF(D73=0,"1","q")) -> q | D73: =InputCurrent!C132-InputPrior!C132 -> -278.879471 | E73: x | F73: =InputCurrent!C64 -> 717 | G73: units | H73: = | I73: =F73*D73 -> -199956.5807
H75: e | I75: =IF(K75>0,"Net Increase",IF(K75=0,"No Change","Net Decrease")) -> Net Increase | K75: =SUM(K51:K74) -> 14532
A76: Parts Movements
K77: Profit Effect
A79: =IF(K79>0,"Increased","Decreased") -> Increased | B79: Gross Profit | J79: =IF(K79>0,"p",IF(K79=0,"1","q")) -> p | K79: =InputCurrent!N96-InputPrior!N96 -> 59000
B80: Sales | C80: =IF(D80>0,"p",IF(D80=0,"1","q")) -> p | D80: =InputCurrent!H16-InputPrior!H16 -> 98000 | E80: x | F80: =InputPrior!H79 -> 0.223861983 | G80: GP Margin | H80: = | I80: =D80*F80 -> 21938.47433
B81: Gross profit margin | C81: =IF(D81>0,"p",IF(D81=0,"1","q")) -> p | D81: =InputCurrent!H79-InputPrior!H79 -> 0.007549709853 | E81: x | F81: =InputCurrent!H16 -> 4909000 | G81: sales | H81: = | I81: =F81*D81 -> 37061.52567
A83: =IF(-K83>0,"Increased","Decreased") -> Decreased | B83: Salaries & Commission | J83: =IF(K83>0,"p",IF(K83=0,"1","q")) -> p | K83: =InputCurrent!N97-InputPrior!N97 -> 2000
B84: No. of sales staff | C84: =IF(D84>0,"p",IF(D84=0,"1","q")) -> 1 | D84: =InputCurrent!H20-InputPrior!H20 -> 0
B85: Mthly gross per staff | C85: =IF(D85>0,"p",IF(D85=0,"1","q")) -> p | D85: =InputCurrent!H82-InputPrior!H82 -> 614.5833333
B86: $ sales per $ salary | C86: =IF(D86>0,"p",IF(D86=0,"1","q")) -> p | D86: =InputCurrent!H83-InputPrior!H83 -> 0.376391237
H88: e | I88: =IF(K88>0,"Net Increase",IF(K88=0,"No Change","Net Decrease")) -> Net Increase | K88: =SUM(K79:K86) -> 61000
A90: Service Movements
K91: Profit Effect
A93: =IF(K93>0,"Increased","Decreased") -> Increased | B93: Labour Gross Profit | J93: =IF(K93>0,"p",IF(K93=0,"1","q")) -> p | K93: =InputCurrent!N101-InputPrior!N101 -> 265000
B94: Sales | C94: =IF(D94>0,"p",IF(D94=0,"1","q")) -> p | D94: =InputCurrent!H27-InputPrior!H27 -> 307000 | E94: x | F94: =InputPrior!H93 -> 0.7238866397 | G94: GP% | H94: = | I94: =D94*F94 -> 222233.1984
B95: Gross profit margin | C95: =IF(D95>0,"p",IF(D95=0,"1","q")) -> p | D95: =InputCurrent!H93-InputPrior!H93 -> 0.01065972124 | E95: x | F95: =InputCurrent!H27 -> 4012000 | G95: sales | H95: = | I95: =F95*D95 -> 42766.80162
B96: No. of technician | C96: =IF(D96>0,"p",IF(D96=0,"1","q")) -> p | D96: =InputCurrent!H39-InputPrior!H39 -> 4.9
B97: Mthly labour gross per tech. | C97: =IF(D97>0,"p",IF(D97=0,"1","q")) -> q | D97: =InputCurrent!H95-InputPrior!H95 -> -452.2523065
A99: =IF(K99>0,"Increased","Decreased") -> Increased | B99: Non-Labour Gross Profit | J99: =IF(K99>0,"p",IF(K99=0,"1","q")) -> p | K99: =InputCurrent!N102-InputPrior!N102 -> 31000
A101: =IF(-K101>0,"Increased","Decreased") -> Decreased | B101: Unapplied time | J101: =IF(K101>0,"p",IF(K101=0,"1","q")) -> 1 | K101: =InputCurrent!N103-InputPrior!N103 -> 0
A103: =IF(-K103>0,"Increased","Decreased") -> Increased | B103: Salaries & Commission | J103: =IF(K103>0,"p",IF(K103=0,"1","q")) -> q | K103: =InputCurrent!N104-InputPrior!N104 -> -84000
B104: No. of service advisors | C104: =IF(D104>0,"p",IF(D104=0,"1","q")) -> p | D104: =InputCurrent!H41-InputPrior!H41 -> 1
B105: No. of other staff | C105: =IF(D105>0,"p",IF(D105=0,"1","q")) -> q | D105: =InputCurrent!H42-InputPrior!H42 -> -4
B106: Non-chargeable salaries % gross | C106: =IF(D106>0,"p",IF(D106=0,"1","q")) -> p | D106: =InputCurrent!H97-InputPrior!H97 -> 0.008275878519
H108: e | I108: =IF(K108>0,"Net Increase",IF(K108=0,"No Change","Net Decrease")) -> Net Increase | K108: =SUM(K93:K107) -> 212000
A110: Finance & Insurance Movements
K111: Profit Effect
A113: =IF(K113>0,"Increased","Decreased") -> Increased | B113: Finance Income - New & Used | J113: =IF(K113>0,"p",IF(K113=0,"1","q")) -> p | K113: =InputCurrent!N108-InputPrior!N108 -> 153000
B114: No. of contracts | C114: =IF(D114>0,"p",IF(D114=0,"1","q")) -> p | D114: =InputCurrent!H51-InputPrior!H51 -> 54 | E114: x | F114: =InputPrior!H106 -> 2680.080483 | G114: $ per contract | H114: = | I114: =D114*F114 -> 144724.3461
B115: $ per contract | C115: =IF(D115>0,"p",IF(D115=0,"1","q")) -> p | D115: =InputCurrent!H106-InputPrior!H106 -> 15.01933561 | E115: x | F115: =InputCurrent!H51 -> 551 | G115: contracts | H115: = | I115: =D115*F115 -> 8275.653924
A117: =IF(K117>0,"Increased","Decreased") -> Increased | B117: Insurance Income - New & Used | J117: =IF(K117>0,"p",IF(K117=0,"1","q")) -> p | K117: =InputCurrent!N110-InputPrior!N110 -> 6000
A119: =IF(-K119>0,"Increased","Decreased") -> Increased | B119: Salaries & Commission | J119: =IF(K119>0,"p",IF(K119=0,"1","q")) -> q | K119: =InputCurrent!N112-InputPrior!N112 -> -82000
H121: e | I121: =IF(K121>0,"Net Increase",IF(K121=0,"No Change","Net Decrease")) -> Net Increase | K121: =SUM(K113:K119) -> 77000
A123: Other Key Movements
K124: Profit Effect
A126: =IF(-K126>0,"Increased","Decreased") -> Increased | B126: Rent | J126: =IF(K126>0,"p",IF(K126=0,"1","q")) -> q | K126: =InputCurrent!N118-InputPrior!N118 -> -12000
A128: =IF(-K128>0,"Increased","Decreased") -> Decreased | B128: Admin & DP salaries & commission | J128: =IF(K128>0,"p",IF(K128=0,"1","q")) -> p | K128: =InputCurrent!N119-InputPrior!N119 -> 50000
A130: =IF(-K130>0,"Increased","Decreased") -> Increased | B130: Interest (Overdraft & working capital) | J130: =IF(K130>0,"p",IF(K130=0,"1","q")) -> q | K130: =InputCurrent!N120-InputPrior!N120 -> -4000
A132: =IF(-K132>0,"Increased","Decreased") -> Increased | B132: Other Expenses | J132: =IF(K132>0,"p",IF(K132=0,"1","q")) -> q | K132: =InputCurrent!N122-InputPrior!N122 -> -486532
A134: =IF(K134>0,"Increased","Decreased") -> Decreased | B134: Other Income | J134: =IF(K134>0,"p",IF(K134=0,"1","q")) -> 1 | K134: =InputCurrent!N121-InputPrior!N121 -> 0
H136: e | I136: =IF(K136>0,"Net Increase",IF(K136=0,"No Change","Net Decrease")) -> Net Decrease | K136: =SUM(K126:K134) -> -452532
A138: =IF(K138>0,"TOTAL NET PROFIT INCREASE","TOTAL NET PROFIT DECREASE") -> TOTAL NET PROFIT INCREASE | K138: =K46+K75+K88+K108+K121+K136 -> 640000
A141: The information contained herein is of a general nature and is not intended to address the circumstances of any particular individual or entity. Although we endeavour to provide accurate and timely information, there can be no guarantee that such information is accurate as of the date it is received or that it will continue to be accurate in the future. No one is entitled to rely on this information and no one should act on such information without appropriate professional advice obtained after a thorough examination of the particular situation.
A143: “Grant Thornton” refers to the brand under which the Grant Thornton member firms provide assurance, tax and advisory services to their clients and/or refers to one or more member firms, as the context requires. Grant Thornton Australia Ltd is a member firm of Grant Thornton International Ltd (GTIL). GTIL and the member firms are not a worldwide partnership. GTIL and each member firm is a separate legal entity. Services are delivered by the member firms. GTIL does not provide services to clients. GTIL and its member firms are not agents of, and do not obligate one another and are not liable for one another’s acts or omissions. In the Australian context only, the use of the term 'Grant Thornton' may refer to Grant Thornton Australia Limited ABN 41 127 556 389 and its Australian subsidiaries and related entities. GTIL is not an Australian related entity to Grant Thornton Australia Limited.
A145: Liability limited by a scheme approved under Professional Standards Legislation. Liability is limited in those States where a current scheme applies.

Sheet Balance
A5: Balance Sheet Analysis
A7: Dealership: | D7: =InputCurrent!C5 -> Sample Motors
A9: Franchise(s): | D9: =InputCurrent!C7 -> Ford, Kia
A10: Location: | D10: =InputCurrent!C8 -> Metro
A11: Period: | D11: =InputCurrent!C10 -> 2014-06-30
A13: Assets | D13: =D11 -> 2014-06-30 | F13: =InputPrior!C10 -> 2013-06-30 | I13: Variance | J13: %
A15: Current Assets
A16: Cash | D16: =InputCurrent!N8 -> 100000 | F16: =InputPrior!N8 -> -235332 | I16: =D16-F16 -> 335332 | J16: =I16/F16 -> -1.424931586
A18: Trade receivables
A19: Vehicle | D19: =InputCurrent!N11 -> 225000 | F19: =InputPrior!N11 -> 301000 | I19: =D19-F19 -> -76000 | J19: =I19/F19 -> -0.2524916944
A20: Parts & Service | D20: =InputCurrent!N12 -> 815000 | F20: =InputPrior!N12 -> 318000 | I20: 497000 | J20: 1.562893082
A21: Factory | D21: =InputCurrent!N13 -> 80000 | F21: =InputPrior!N13 -> 150000 | I21: -70000 | J21: -0.4666666667
A22: Finance & Insurance | D22: =InputCurrent!N14 -> 125000 | F22: =InputPrior!N14 -> 75000 | I22: 50000 | J22: 0.6666666667
A24: Inventories
A25: New | D25: =InputCurrent!N17 -> 6860000 | F25: =InputPrior!N17 -> 5550000 | I25: 1310000 | J25: 0.236036036
A26: Used | D26: =InputCurrent!N18 -> 1625000 | F26: =InputPrior!N18 -> 1282000 | I26: 343000 | J26: 0.267550702
A27: Parts & Accessories | D27: =InputCurrent!N19 -> 1626000 | F27: =InputPrior!N19 -> 335000 | I27: 1291000 | J27: 3.853731343
A28: Other | D28: =InputCurrent!N20 -> 11000 | F28: =InputPrior!N20 -> 0 | I28: 11000
A30: Other current assets | D30: =InputCurrent!N23 -> 0 | F30: =InputPrior!N23 -> 0 | I30: 0
D32: =InputCurrent!N25 -> 11467000 | F32: =InputPrior!N25 -> 7775668 | I32: 3691332 | J32: 0.4747286021
A34: Non-current Assets
A35: Property, plant & equipment | D35: =InputCurrent!N28 -> 2500000 | F35: =InputPrior!N28 -> 2391000 | I35: 109000 | J35: 0.04558762024
A36: Goodwill & Intangibles | D36: =InputCurrent!N29 -> 0 | F36: =InputPrior!N29 -> 0 | I36: 0
A37: Other non-current assets | D37: =InputCurrent!N30 -> 0 | F37: =InputPrior!N30 -> 0 | I37: 0
D39: =InputCurrent!N32 -> 2500000 | F39: =InputPrior!N32 -> 2391000 | I39: 109000 | J39: 0.04558762024
D41: =InputCurrent!N34 -> 13967000 | F41: =InputPrior!N34 -> 10166668 | I41: 3800332 | J41: 0.3738030985
A42: Liabilities
A44: Current Liabilities
A45: Trade creditors | D45: =InputCurrent!S8 -> 150000 | F45: =InputPrior!S8 -> 200000 | I45: -50000 | J45: -0.25
A46: Floorplan | D46: =InputCurrent!S9 -> 8160000 | F46: =InputPrior!S9 -> 6500000 | I46: 1660000 | J46: 0.2553846154
A47: Short-term debt | D47: =InputCurrent!S10 -> 20000 | F47: =InputPrior!S10 -> 100000 | I47: -80000 | J47: -0.8
A48: Other payables & accruals | D48: =InputCurrent!S11 -> 120000 | F48: =InputPrior!S11 -> 250000 | I48: -130000 | J48: -0.52
D50: =InputCurrent!S13 -> 8450000 | F50: =InputPrior!S13 -> 7050000 | I50: 1400000 | J50: 0.1985815603
A52: Non-current Liabilities
A53: Long-term debt | D53: =InputCurrent!S16 -> 2000000 | F53: =InputPrior!S16 -> 2000000 | I53: 0 | J53: 0
A54: Other payables & provisions | D54: =InputCurrent!S17 -> 0 | F54: =InputPrior!S17 -> 0 | I54: =D54-F54 -> 0 | J54: =I54/F54 -> 
A55: Inter-group / Inter-company bal. | D55: =InputCurrent!S18 -> 987590 | F55: =InputPrior!S18 -> 0 | I55: =D55-F55 -> 987590 | J55: =I55/F55 -> 
D57: =InputCurrent!S20 -> 2987590 | F57: =InputPrior!S20 -> 2000000 | I57: 987590 | J57: 0.493795
D59: =InputCurrent!S22 -> 11437590 | F59: =InputPrior!S22 -> 9050000 | I59: 2387590 | J59: 0.2638220994
A61: Net Assets | D61: =InputCurrent!S24 -> 2529410 | F61: =InputPrior!S24 -> 1116668 | I61: 1412742 | J61: 1.265140579
A63: Equity
A65: Contributed equity | D65: =InputCurrent!S28 -> 100 | F65: =InputPrior!S28 -> 100 | I65: 0 | J65: 0
A66: Reserves | D66: =InputCurrent!S29 -> 0 | F66: =InputPrior!S29 -> 0 | I66: 0
A67: Retained (earnings)/losses | D67: =InputCurrent!S30 -> 2529310 | F67: =InputPrior!S30 -> 1839024 | I67: 690286 | J67: 0.3753545359
D69: =InputCurrent!S32 -> 2529410 | F69: =InputPrior!S32 -> 1839124 | I69: 690286 | J69: 0.3753341265
A71: Key Ratios
D72: =D13 -> 2014-06-30 | F72: =F13 -> 2013-06-30
A74: Current | D74: =D32/D50 -> 1.35704142 | F74: =F32/F50 -> 1.102931631
A76: Quick | D76: =(D16+D19+D20+D21+D22)/D50 -> 0.1591715976 | F76: =(F16+F19+F20+F21+F22)/F50 -> 0.08633588652
A78: Return on total assets | D78: =InputCurrent!H64/Balance!D41 -> 0.1585881005 | F78: =InputPrior!H64/Balance!F41 -> 0.1549180125
A80: Return on Equity | D80: =InputCurrent!H64/Balance!D69 -> 0.8756982854 | F80: =InputPrior!H64/Balance!F69 -> 0.8563859751
A82: The information contained herein is of a general nature and is not intended to address the circumstances of any particular individual or entity. Although we endeavour to provide accurate and timely information, there can be no guarantee that such information is accurate as of the date it is received or that it will continue to be accurate in the future. No one is entitled to rely on this information and no one should act on such information without appropriate professional advice obtained after a thorough examination of the particular situation.
A84: “Grant Thornton” refers to the brand under which the Grant Thornton member firms provide assurance, tax and advisory services to their clients and/or refers to one or more member firms, as the context requires. Grant Thornton Australia Ltd is a member firm of Grant Thornton International Ltd (GTIL). GTIL and the member firms are not a worldwide partnership. GTIL and each member firm is a separate legal entity. Services are delivered by the member firms. GTIL does not provide services to clients. GTIL and its member firms are not agents of, and do not obligate one another and are not liable for one another’s acts or omissions. In the Australian context only, the use of the term 'Grant Thornton' may refer to Grant Thornton Australia Limited ABN 41 127 556 389 and its Australian subsidiaries and related entities. GTIL is not an Australian related entity to Grant Thornton Australia Limited.
A86: Liability limited by a scheme approved under Professional Standards Legislation. Liability is limited in those States where a current scheme applies.
